Workbook

Sheet Europe Map
A1: HVPI - Gesamtindex | E1: =Zeitraum_Beschriftung -> September 2024

Sheet Data (hidden)
A1: Werte für | B1: =Zeitraum -> 2024-09-01 | D1: =Auswahl_Zeitraum -> 193
A2: No. | B2: Abbreviation | C2: Country | D2: Values | E2: Klassen | F2: R | G2: G | H2: B | J2: Hilfsspalte
A3: 1 | B3: ALB | C3: Albanien | D3: =IF(ISERROR(VLOOKUP(B3,Matrix_HVPI,Auswahl_Zeitraum,FALSE)),999999,VLOOKUP(B3,Matrix_HVPI,Auswahl_Zeitraum,FALSE)) -> 999999 | E3: =IF(D3=999999,9,IF(AND(D3>=MIN,D3<=Klasse1_MAX),1,IF(AND(D3>=Klasse2_MIN,D3<=Klasse2_MAX),2,IF(AND(D3>=Klasse3_MIN,D3<=Klasse3_MAX),3,IF(AND(D3>=Klasse4_MIN,D3<=Klasse4_MAX),4,IF(AND(D3>=Klasse5_MIN,D3<=Klasse5_MAX),5,IF(AND(D3>=Klasse6_MIN,D3<=Klasse6_MAX),6,IF(AND(D3>=Klasse7_MIN,D3<=Klasse7_MAX),7,IF(AND(D3>=Klasse8_MIN,D3<=MAX),8,9))))))))) -> 9 | F3: =LOOKUP(E3,Control!$K$3:$K$11,Control!$H$3:$H$11) -> 150 | G3: =LOOKUP(E3,Control!$K$3:$K$11,Control!$I$3:$I$11) -> 150 | H3: =LOOKUP(E3,Control!$K$3:$K$11,Control!$J$3:$J$11) -> 150 | I3: =C3 -> Albanien | J3: =IF(D3=999999,"",IF(D3=0,ROW()/1000000,D3-ROW()/1000000)) ->  | K3: =INDEX($I$3:$I$65526,MATCH(LARGE($J$3:$J$65526,ROW(M1)),$J$3:$J$65526,0)) -> Türkei | L3: =VLOOKUP(K3,$C$3:$D$65526,2,FALSE) -> 49.5
A4: =A3+1 -> 2 | B4: AUT | C4: Österreich | D4: 1.8 | E4: 4 | F4: =LOOKUP(E4,Control!$K$3:$K$11,Control!$H$3:$H$11) -> 0 | G4: =LOOKUP(E4,Control!$K$3:$K$11,Control!$I$3:$I$11) -> 104 | H4: =LOOKUP(E4,Control!$K$3:$K$11,Control!$J$3:$J$11) -> 55 | I4: =C4 -> Österreich | J4: =IF(D4=999999,"",IF(D4=0,ROW()/1000000,D4-ROW()/1000000)) -> 1.799996 | K4: =INDEX($I$3:$I$65526,MATCH(LARGE($J$3:$J$65526,ROW(M2)),$J$3:$J$65526,0)) -> Rumänien | L4: =VLOOKUP(K4,$C$3:$D$65526,2,FALSE) -> 4.8
A5: 3 | B5: BLR | C5: Weißrussland | D5: 999999 | E5: 9 | F5: =LOOKUP(E5,Control!$K$3:$K$11,Control!$H$3:$H$11) -> 150 | G5: =LOOKUP(E5,Control!$K$3:$K$11,Control!$I$3:$I$11) -> 150 | H5: =LOOKUP(E5,Control!$K$3:$K$11,Control!$J$3:$J$11) -> 150 | I5: Weißrussland | K5: Belgien | L5: 4.3
A6: 4 | B6: BEL | C6: Belgien | D6: 4.3 | E6: 5 | F6: =LOOKUP(E6,Control!$K$3:$K$11,Control!$H$3:$H$11) -> 254 | G6: =LOOKUP(E6,Control!$K$3:$K$11,Control!$I$3:$I$11) -> 227 | H6: =LOOKUP(E6,Control!$K$3:$K$11,Control!$J$3:$J$11) -> 145 | I6: Belgien | J6: 4.299994 | K6: Polen | L6: 4.2
A7: 5 | B7: BIH | C7: Bosnien u. Herzegowina | D7: 999999 | E7: 9 | F7: =LOOKUP(E7,Control!$K$3:$K$11,Control!$H$3:$H$11) -> 150 | G7: =LOOKUP(E7,Control!$K$3:$K$11,Control!$I$3:$I$11) -> 150 | H7: =LOOKUP(E7,Control!$K$3:$K$11,Control!$J$3:$J$11) -> 150 | I7: Bosnien u. Herzegowina | K7: Island | L7: 3.4
A8: 6 | B8: BGR | C8: Bulgarien | D8: 1.5 | E8: 4 | F8: =LOOKUP(E8,Control!$K$3:$K$11,Control!$H$3:$H$11) -> 0 | G8: =LOOKUP(E8,Control!$K$3:$K$11,Control!$I$3:$I$11) -> 104 | H8: =LOOKUP(E8,Control!$K$3:$K$11,Control!$J$3:$J$11) -> 55 | I8: Bulgarien | J8: 1.499992 | K8: Niederlande | L8: 3.3
A9: 7 | B9: HRV | C9: Kroatien | D9: 3.1 | E9: 5 | F9: =LOOKUP(E9,Control!$K$3:$K$11,Control!$H$3:$H$11) -> 254 | G9: =LOOKUP(E9,Control!$K$3:$K$11,Control!$I$3:$I$11) -> 227 | H9: =LOOKUP(E9,Control!$K$3:$K$11,Control!$J$3:$J$11) -> 145 | I9: Kroatien | J9: 3.099991 | K9: Estland | L9: 3.2
A10: 8 | B10: CZE | C10: Tschechische Republik | D10: 2.8 | E10: 5 | F10: =LOOKUP(E10,Control!$K$3:$K$11,Control!$H$3:$H$11) -> 254 | G10: =LOOKUP(E10,Control!$K$3:$K$11,Control!$I$3:$I$11) -> 227 | H10: =LOOKUP(E10,Control!$K$3:$K$11,Control!$J$3:$J$11) -> 145 | I10: Tschechische Republik | J10: 2.79999 | K10: Kroatien | L10: 3.1
A11: 9 | B11: DNK | C11: Dänemark | D11: 1.2 | E11: 4 | F11: =LOOKUP(E11,Control!$K$3:$K$11,Control!$H$3:$H$11) -> 0 | G11: =LOOKUP(E11,Control!$K$3:$K$11,Control!$I$3:$I$11) -> 104 | H11: =LOOKUP(E11,Control!$K$3:$K$11,Control!$J$3:$J$11) -> 55 | I11: Dänemark | J11: 1.199989 | K11: Griechenland | L11: 3.1
A12: 10 | B12: EST | C12: Estland | D12: 3.2 | E12: 5 | F12: =LOOKUP(E12,Control!$K$3:$K$11,Control!$H$3:$H$11) -> 254 | G12: =LOOKUP(E12,Control!$K$3:$K$11,Control!$I$3:$I$11) -> 227 | H12: =LOOKUP(E12,Control!$K$3:$K$11,Control!$J$3:$J$11) -> 145 | I12: Estland | J12: 3.199988 | K12: Ungarn | L12: 3
A13: 11 | B13: FIN | C13: Finnland | D13: 1 | E13: 3 | F13: =LOOKUP(E13,Control!$K$3:$K$11,Control!$H$3:$H$11) -> 49 | G13: =LOOKUP(E13,Control!$K$3:$K$11,Control!$I$3:$I$11) -> 163 | H13: =LOOKUP(E13,Control!$K$3:$K$11,Control!$J$3:$J$11) -> 84 | I13: Finnland | J13: 0.999987 | K13: Slowakei | L13: 2.9
A14: 12 | B14: FRA | C14: Frankreich | D14: 1.4 | E14: 4 | F14: =LOOKUP(E14,Control!$K$3:$K$11,Control!$H$3:$H$11) -> 0 | G14: =LOOKUP(E14,Control!$K$3:$K$11,Control!$I$3:$I$11) -> 104 | H14: =LOOKUP(E14,Control!$K$3:$K$11,Control!$J$3:$J$11) -> 55 | I14: Frankreich | J14: 1.399986 | K14: Tschechische Republik | L14: 2.8
A15: 13 | B15: DEU | C15: Deutschland | D15: 1.8 | E15: 4 | F15: =LOOKUP(E15,Control!$K$3:$K$11,Control!$H$3:$H$11) -> 0 | G15: =LOOKUP(E15,Control!$K$3:$K$11,Control!$I$3:$I$11) -> 104 | H15: =LOOKUP(E15,Control!$K$3:$K$11,Control!$J$3:$J$11) -> 55 | I15: Deutschland | J15: 1.799985 | K15: Norwegen | L15: 2.7
A16: 14 | B16: GRC | C16: Griechenland | D16: 3.1 | E16: 5 | F16: =LOOKUP(E16,Control!$K$3:$K$11,Control!$H$3:$H$11) -> 254 | G16: =LOOKUP(E16,Control!$K$3:$K$11,Control!$I$3:$I$11) -> 227 | H16: =LOOKUP(E16,Control!$K$3:$K$11,Control!$J$3:$J$11) -> 145 | I16: Griechenland | J16: 3.099984 | K16: Portugal | L16: 2.6
A17: 15 | B17: HUN | C17: Ungarn | D17: 3 | E17: 5 | F17: =LOOKUP(E17,Control!$K$3:$K$11,Control!$H$3:$H$11) -> 254 | G17: =LOOKUP(E17,Control!$K$3:$K$11,Control!$I$3:$I$11) -> 227 | H17: =LOOKUP(E17,Control!$K$3:$K$11,Control!$J$3:$J$11) -> 145 | I17: Ungarn | J17: 2.999983 | K17: Malta | L17: 2.1
A18: 16 | B18: ISL | C18: Island | D18: 3.4 | E18: 5 | F18: =LOOKUP(E18,Control!$K$3:$K$11,Control!$H$3:$H$11) -> 254 | G18: =LOOKUP(E18,Control!$K$3:$K$11,Control!$I$3:$I$11) -> 227 | H18: =LOOKUP(E18,Control!$K$3:$K$11,Control!$J$3:$J$11) -> 145 | I18: Island | J18: 3.399982 | K18: Österreich | L18: 1.8
A19: 17 | B19: IRL | C19: Irland | D19: 0 | E19: 3 | F19: =LOOKUP(E19,Control!$K$3:$K$11,Control!$H$3:$H$11) -> 49 | G19: =LOOKUP(E19,Control!$K$3:$K$11,Control!$I$3:$I$11) -> 163 | H19: =LOOKUP(E19,Control!$K$3:$K$11,Control!$J$3:$J$11) -> 84 | I19: Irland | J19: 1.9e-05 | K19: Deutschland | L19: 1.8
A20: 18 | B20: ITA | C20: Italien | D20: 0.7 | E20: 3 | F20: =LOOKUP(E20,Control!$K$3:$K$11,Control!$H$3:$H$11) -> 49 | G20: =LOOKUP(E20,Control!$K$3:$K$11,Control!$I$3:$I$11) -> 163 | H20: =LOOKUP(E20,Control!$K$3:$K$11,Control!$J$3:$J$11) -> 84 | I20: Italien | J20: 0.69998 | K20: Spanien | L20: 1.7
A21: 19 | B21: LVA | C21: Lettland | D21: 1.6 | E21: 4 | F21: =LOOKUP(E21,Control!$K$3:$K$11,Control!$H$3:$H$11) -> 0 | G21: =LOOKUP(E21,Control!$K$3:$K$11,Control!$I$3:$I$11) -> 104 | H21: =LOOKUP(E21,Control!$K$3:$K$11,Control!$J$3:$J$11) -> 55 | I21: Lettland | J21: 1.599979 | K21: Lettland | L21: 1.6
A22: 20 | B22: LTU | C22: Litauen | D22: 0.4 | E22: 3 | F22: =LOOKUP(E22,Control!$K$3:$K$11,Control!$H$3:$H$11) -> 49 | G22: =LOOKUP(E22,Control!$K$3:$K$11,Control!$I$3:$I$11) -> 163 | H22: =LOOKUP(E22,Control!$K$3:$K$11,Control!$J$3:$J$11) -> 84 | I22: Litauen | J22: 0.399978 | K22: Zypern | L22: 1.6
A23: 21 | B23: LUX | C23: Luxemburg | D23: 0.8 | E23: 3 | F23: =LOOKUP(E23,Control!$K$3:$K$11,Control!$H$3:$H$11) -> 49 | G23: =LOOKUP(E23,Control!$K$3:$K$11,Control!$I$3:$I$11) -> 163 | H23: =LOOKUP(E23,Control!$K$3:$K$11,Control!$J$3:$J$11) -> 84 | I23: Luxemburg | J23: 0.799977 | K23: Bulgarien | L23: 1.5
A24: 22 | B24: MKD | C24: Mazedonien | D24: 999999 | E24: 9 | F24: =LOOKUP(E24,Control!$K$3:$K$11,Control!$H$3:$H$11) -> 150 | G24: =LOOKUP(E24,Control!$K$3:$K$11,Control!$I$3:$I$11) -> 150 | H24: =LOOKUP(E24,Control!$K$3:$K$11,Control!$J$3:$J$11) -> 150 | I24: Mazedonien | K24: Frankreich | L24: 1.4
A25: 23 | B25: MAL | C25: Malta | D25: 2.1 | E25: 5 | F25: =LOOKUP(E25,Control!$K$3:$K$11,Control!$H$3:$H$11) -> 254 | G25: =LOOKUP(E25,Control!$K$3:$K$11,Control!$I$3:$I$11) -> 227 | H25: =LOOKUP(E25,Control!$K$3:$K$11,Control!$J$3:$J$11) -> 145 | I25: Malta | J25: 2.099975 | K25: Dänemark | L25: 1.2
A26: 24 | B26: MDA | C26: Moldawien | D26: 999999 | E26: 9 | F26: =LOOKUP(E26,Control!$K$3:$K$11,Control!$H$3:$H$11) -> 150 | G26: =LOOKUP(E26,Control!$K$3:$K$11,Control!$I$3:$I$11) -> 150 | H26: =LOOKUP(E26,Control!$K$3:$K$11,Control!$J$3:$J$11) -> 150 | I26: Moldawien | K26: Schweden | L26: 1.2
A27: 25 | B27: NLD | C27: Niederlande | D27: 3.3 | E27: 5 | F27: =LOOKUP(E27,Control!$K$3:$K$11,Control!$H$3:$H$11) -> 254 | G27: =LOOKUP(E27,Control!$K$3:$K$11,Control!$I$3:$I$11) -> 227 | H27: =LOOKUP(E27,Control!$K$3:$K$11,Control!$J$3:$J$11) -> 145 | I27: Niederlande | J27: 3.299973 | K27: Finnland | L27: 1
A28: 26 | B28: NOR | C28: Norwegen | D28: 2.7 | E28: 5 | F28: =LOOKUP(E28,Control!$K$3:$K$11,Control!$H$3:$H$11) -> 254 | G28: =LOOKUP(E28,Control!$K$3:$K$11,Control!$I$3:$I$11) -> 227 | H28: =LOOKUP(E28,Control!$K$3:$K$11,Control!$J$3:$J$11) -> 145 | I28: Norwegen | J28: 2.699972 | K28: Schweiz | L28: 0.9
A29: 27 | B29: POL | C29: Polen | D29: 4.2 | E29: 5 | F29: =LOOKUP(E29,Control!$K$3:$K$11,Control!$H$3:$H$11) -> 254 | G29: =LOOKUP(E29,Control!$K$3:$K$11,Control!$I$3:$I$11) -> 227 | H29: =LOOKUP(E29,Control!$K$3:$K$11,Control!$J$3:$J$11) -> 145 | I29: Polen | J29: 4.199971 | K29: Luxemburg | L29: 0.8
A30: 28 | B30: PRT | C30: Portugal | D30: 2.6 | E30: 5 | F30: =LOOKUP(E30,Control!$K$3:$K$11,Control!$H$3:$H$11) -> 254 | G30: =LOOKUP(E30,Control!$K$3:$K$11,Control!$I$3:$I$11) -> 227 | H30: =LOOKUP(E30,Control!$K$3:$K$11,Control!$J$3:$J$11) -> 145 | I30: Portugal | J30: 2.59997 | K30: Italien | L30: 0.7
A31: 29 | B31: ROM | C31: Rumänien | D31: 4.8 | E31: 5 | F31: =LOOKUP(E31,Control!$K$3:$K$11,Control!$H$3:$H$11) -> 254 | G31: =LOOKUP(E31,Control!$K$3:$K$11,Control!$I$3:$I$11) -> 227 | H31: =LOOKUP(E31,Control!$K$3:$K$11,Control!$J$3:$J$11) -> 145 | I31: Rumänien | J31: 4.799969 | K31: Slowenien | L31: 0.7
A32: 30 | B32: RUS | C32: Russland | D32: 999999 | E32: 9 | F32: =LOOKUP(E32,Control!$K$3:$K$11,Control!$H$3:$H$11) -> 150 | G32: =LOOKUP(E32,Control!$K$3:$K$11,Control!$I$3:$I$11) -> 150 | H32: =LOOKUP(E32,Control!$K$3:$K$11,Control!$J$3:$J$11) -> 150 | I32: Russland | K32: Litauen | L32: 0.4
A33: 31 | B33: SR | C33: Serbien | D33: 999999 | E33: 9 | F33: =LOOKUP(E33,Control!$K$3:$K$11,Control!$H$3:$H$11) -> 150 | G33: =LOOKUP(E33,Control!$K$3:$K$11,Control!$I$3:$I$11) -> 150 | H33: =LOOKUP(E33,Control!$K$3:$K$11,Control!$J$3:$J$11) -> 150 | I33: Serbien | K33: Irland | L33: 0
A34: 32 | B34: SVK | C34: Slowakei | D34: 2.9 | E34: 5 | F34: =LOOKUP(E34,Control!$K$3:$K$11,Control!$H$3:$H$11) -> 254 | G34: =LOOKUP(E34,Control!$K$3:$K$11,Control!$I$3:$I$11) -> 227 | H34: =LOOKUP(E34,Control!$K$3:$K$11,Control!$J$3:$J$11) -> 145 | I34: Slowakei | J34: 2.899966
A35: 33 | B35: SVN | C35: Slowenien | D35: 0.7 | E35: 3 | F35: =LOOKUP(E35,Control!$K$3:$K$11,Control!$H$3:$H$11) -> 49 | G35: =LOOKUP(E35,Control!$K$3:$K$11,Control!$I$3:$I$11) -> 163 | H35: =LOOKUP(E35,Control!$K$3:$K$11,Control!$J$3:$J$11) -> 84 | I35: Slowenien | J35: 0.699965
A36: 34 | B36: ESP | C36: Spanien | D36: 1.7 | E36: 4 | F36: =LOOKUP(E36,Control!$K$3:$K$11,Control!$H$3:$H$11) -> 0 | G36: =LOOKUP(E36,Control!$K$3:$K$11,Control!$I$3:$I$11) -> 104 | H36: =LOOKUP(E36,Control!$K$3:$K$11,Control!$J$3:$J$11) -> 55 | I36: Spanien | J36: 1.699964
A37: 35 | B37: SWE | C37: Schweden | D37: 1.2 | E37: 4 | F37: =LOOKUP(E37,Control!$K$3:$K$11,Control!$H$3:$H$11) -> 0 | G37: =LOOKUP(E37,Control!$K$3:$K$11,Control!$I$3:$I$11) -> 104 | H37: =LOOKUP(E37,Control!$K$3:$K$11,Control!$J$3:$J$11) -> 55 | I37: Schweden | J37: 1.199963
A38: 36 | B38: CHE | C38: Schweiz | D38: 0.9 | E38: 3 | F38: =LOOKUP(E38,Control!$K$3:$K$11,Control!$H$3:$H$11) -> 49 | G38: =LOOKUP(E38,Control!$K$3:$K$11,Control!$I$3:$I$11) -> 163 | H38: =LOOKUP(E38,Control!$K$3:$K$11,Control!$J$3:$J$11) -> 84 | I38: Schweiz | J38: 0.899962
A39: 37 | B39: TRK | C39: Türkei | D39: 49.5 | E39: 8 | F39: =LOOKUP(E39,Control!$K$3:$K$11,Control!$H$3:$H$11) -> 236 | G39: =LOOKUP(E39,Control!$K$3:$K$11,Control!$I$3:$I$11) -> 112 | H39: =LOOKUP(E39,Control!$K$3:$K$11,Control!$J$3:$J$11) -> 20 | I39: Türkei | J39: 49.499961
A40: 38 | B40: UKR | C40: Ukraine | D40: 999999 | E40: 9 | F40: =LOOKUP(E40,Control!$K$3:$K$11,Control!$H$3:$H$11) -> 150 | G40: =LOOKUP(E40,Control!$K$3:$K$11,Control!$I$3:$I$11) -> 150 | H40: =LOOKUP(E40,Control!$K$3:$K$11,Control!$J$3:$J$11) -> 150 | I40: Ukraine
A41: 39 | B41: CYP | C41: Zypern | D41: 1.6 | E41: 4 | F41: =LOOKUP(E41,Control!$K$3:$K$11,Control!$H$3:$H$11) -> 0 | G41: =LOOKUP(E41,Control!$K$3:$K$11,Control!$I$3:$I$11) -> 104 | H41: =LOOKUP(E41,Control!$K$3:$K$11,Control!$J$3:$J$11) -> 55 | I41: Zypern | J41: 1.599959
A42: 40 | B42: GBR | C42: Vereinigtes Königreich | D42: =IF(ISERROR(VLOOKUP(B42,Matrix_HVPI,Auswahl_Zeitraum,FALSE)),999999,VLOOKUP(B42,Matrix_HVPI,Auswahl_Zeitraum,FALSE)) -> 999999 | E42: 9 | F42: =LOOKUP(E42,Control!$K$3:$K$11,Control!$H$3:$H$11) -> 150 | G42: =LOOKUP(E42,Control!$K$3:$K$11,Control!$I$3:$I$11) -> 150 | H42: =LOOKUP(E42,Control!$K$3:$K$11,Control!$J$3:$J$11) -> 150 | I42: Vereinigtes Königreich

Sheet Control (hidden)
E2: MIN | G2: MAX | H2: R | I2: G | J2: B | K2: Klasse
E3: -17 | F3: bis | G3: -2.01 | H3: 194 | I3: 230 | J3: 153 | K3: 1
E4: -2 | F4: bis | G4: -1.01 | H4: 120 | I4: 198 | J4: 121 | K4: 2 | M4: Neue Farbskala
E5: -1 | F5: bis | G5: 1 | H5: 49 | I5: 163 | J5: 84 | K5: 3
A6: Selection | B6: 7 | E6: 1.01 | F6: bis | G6: 2 | H6: 0 | I6: 104 | J6: 55 | K6: 4 | N6: -17 | O6: bis | P6: -2.01 | Q6: 194 | R6: 230 | S6: 153 | T6: 1
A7: Darkness | B7: 5 | E7: 2.01 | F7: bis | G7: 5 | H7: 254 | I7: 227 | J7: 145 | K7: 5 | N7: -2 | O7: bis | P7: -1.01 | Q7: 120 | R7: 198 | S7: 121 | T7: 2
A8: Min / Max | B8: =MAX(rngValues) -> 999999 | E8: 5.01 | F8: bis | G8: 10 | H8: 254 | I8: 196 | J8: 79 | K8: 6 | N8: -1 | O8: bis | P8: 1 | Q8: 49 | R8: 163 | S8: 84 | T8: 3
A9: Min / Max | B9: =MIN(rngValues) -> 0 | E9: 10.01 | F9: bis | G9: 20 | H9: 254 | I9: 153 | J9: 41 | K9: 7 | N9: 1.01 | O9: bis | P9: 2 | Q9: 0 | R9: 104 | S9: 55 | T9: 4
A10: Min / Max | B10: =(B8-B9)/D16 -> 166666.5 | E10: 20.01 | F10: bis | G10: 100 | H10: 236 | I10: 112 | J10: 20 | K10: 8 | N10: 2.01 | O10: bis | P10: 5 | Q10: 255 | R10: 216 | S10: 137 | T10: 5
A11: Threshold | B11: Klasse | E11: Daten nicht verfügbar | H11: 150 | I11: 150 | J11: 150 | K11: 9 | N11: 5.01 | O11: bis | P11: 10 | Q11: 255 | R11: 184 | S11: 79 | T11: 6
A12: =B9 -> 0 | N12: 10.01 | O12: bis | P12: 20 | Q12: 250 | R12: 149 | S12: 0 | T12: 7
A13: =A12+$B$10 -> 166666.5 | B13: 1 | N13: 20.01 | O13: bis | P13: 100 | Q13: 222 | R13: 132 | S13: 0 | T13: 8
A14: 333333 | B14: 2 | N14: Daten nicht verfügbar | Q14: 150 | R14: 150 | S14: 150 | T14: 9
A15: 499999.5 | B15: 3
A16: 666666 | B16: 4 | C16: Klassen | D16: =ROUND(SQRT(D17),0) -> 6
A17: 833332.5 | B17: 5 | C17: Verfügbare Werte | D17: =COUNTIF(Data!D:D,">0") -> 40

Sheet Pivot (hidden)
F1: =IF(LEN(ControlCell)=3,ControlCell,RIGHT(LEFT(ControlCell,5),3)) -> AUT | G1: AUT
F2: =IF(ISNA(G2),"AUT",G2) -> Österreich | G2: =VLOOKUP(ControllCell_bereinigt,Data!$B$3:$C$41,2,FALSE) -> Österreich | H2: Value
F3: =COUNTIF(F7:F37,">0") -> 30 | G3: =COUNTIF(rngValues,">0") -> 39 | H3: =IF(ISERROR(VLOOKUP(F2,E7:F65525,2,FALSE)),"Daten nicht verfügbar",TEXT(VLOOKUP(F2,E7:F65525,2,FALSE),"#0,0")) -> 1,8
E5: HVPI - Gesamtindex
E6: =IF(Zeitraum!E2="31.12.","Veränd. zum VJ. in %","Veränd. zum VJM. in %") -> Veränd. zum VJM. in %
D7: 1 | E7: =Data!K3 -> Türkei | F7: =Data!L3 -> 49.5 | H7: =IF(Zeitraum!E2="31.12.","Veränderungsrate zum Vorjahr in %","Veränderungsrate zum Vorjahresmonat in %") -> Veränderungsrate zum Vorjahresmonat in %
D8: =C3-(C3-D7)+1 -> 2 | E8: =Data!K4 -> Rumänien | F8: =Data!L4 -> 4.8
D9: =C4-(C4-D8)+1 -> 3 | E9: =Data!K5 -> Belgien | F9: =Data!L5 -> 4.3
D10: 4 | E10: =Data!K6 -> Polen | F10: =Data!L6 -> 4.2
D11: 5 | E11: =Data!K7 -> Island | F11: =Data!L7 -> 3.4
D12: 6 | E12: =Data!K8 -> Niederlande | F12: =Data!L8 -> 3.3
D13: 7 | E13: =Data!K9 -> Estland | F13: =Data!L9 -> 3.2
D14: 8 | E14: =Data!K10 -> Kroatien | F14: =Data!L10 -> 3.1
D15: 9 | E15: =Data!K11 -> Griechenland | F15: =Data!L11 -> 3.1
D16: 10 | E16: =Data!K12 -> Ungarn | F16: =Data!L12 -> 3
D17: 11 | E17: =Data!K13 -> Slowakei | F17: =Data!L13 -> 2.9
D18: 12 | E18: =Data!K14 -> Tschechische Republik | F18: =Data!L14 -> 2.8
D19: 13 | E19: =Data!K15 -> Norwegen | F19: =Data!L15 -> 2.7
D20: 14 | E20: =Data!K16 -> Portugal | F20: =Data!L16 -> 2.6
D21: 15 | E21: =Data!K17 -> Malta | F21: =Data!L17 -> 2.1
D22: 16 | E22: =Data!K18 -> Österreich | F22: =Data!L18 -> 1.8
D23: 17 | E23: =Data!K19 -> Deutschland | F23: =Data!L19 -> 1.8
D24: 18 | E24: =Data!K20 -> Spanien | F24: =Data!L20 -> 1.7
D25: 19 | E25: =Data!K21 -> Lettland | F25: =Data!L21 -> 1.6
D26: 20 | E26: =Data!K22 -> Zypern | F26: =Data!L22 -> 1.6
D27: 21 | E27: =Data!K23 -> Bulgarien | F27: =Data!L23 -> 1.5
D28: 22 | E28: =Data!K24 -> Frankreich | F28: =Data!L24 -> 1.4
D29: 23 | E29: =Data!K25 -> Dänemark | F29: =Data!L25 -> 1.2
D30: 24 | E30: =Data!K26 -> Schweden | F30: =Data!L26 -> 1.2
D31: 25 | E31: =Data!K27 -> Finnland | F31: =Data!L27 -> 1
D32: 26 | E32: =Data!K28 -> Schweiz | F32: =Data!L28 -> 0.9
D33: 27 | E33: =Data!K29 -> Luxemburg | F33: =Data!L29 -> 0.8
D34: 28 | E34: =Data!K30 -> Italien | F34: =Data!L30 -> 0.7
D35: 29 | E35: =Data!K31 -> Slowenien | F35: =Data!L31 -> 0.7
D36: 30 | E36: =Data!K32 -> Litauen | F36: =Data!L32 -> 0.4
D37: 31 | E37: =Data!K33 -> Irland | F37: =Data!L33 -> 0

Sheet Karte (hidden)

Sheet HVPI (hidden)
A1: HVPI (2005 = 100) bzw 2015=100 - Monatliche Daten (jährliche Veränderungsrate) [prc_hicp_manr]
L2: Klassen
A3: Letzte Aktualisierung | B3: 2016-01-05T07:30:11 | I3: =MAX(C11:CA41) -> 11.6 | J3: Max | L3: 2 - 17
A4: Exportierte Daten | B4: 2016-01-08T15:45:04.254 | I4: =MIN(C11:CA41) -> -4.3 | J4: Min | L4: 1 - 2
A5: Quelle der Daten | B5: Eurostat | L5: 0 - 1
L6: -2 - -1
A7: UNIT | B7: Jährliche Veränderungsrate | L7: -17 - -2
A8: COICOP | B8: Gesamt-HVPI
A9: 1 | B9: 2 | C9: 3 | D9: 4 | E9: 5 | F9: 6 | G9: 7 | H9: 8 | I9: 9 | J9: 10 | K9: 11 | L9: 12 | M9: 13 | N9: 14 | O9: 15 | P9: 16 | Q9: 17 | R9: 18 | S9: 19 | T9: 20 | U9: 21 | V9: 22 | W9: 23 | X9: 24 | Y9: 25 | Z9: 26 | AA9: 27 | AB9: 28 | AC9: 29 | AD9: 30 | AE9: 31 | AF9: 32 | AG9: 33 | AH9: 34 | AI9: 35 | AJ9: 36 | AK9: 37 | AL9: 38 | AM9: 39 | AN9: 40 | AO9: 41 | AP9: 42 | AQ9: 43 | AR9: 44 | AS9: 45 | AT9: 46 | AU9: 47 | AV9: 48 | AW9: 49 | AX9: 50 | AY9: 51 | AZ9: 52 | BA9: 53 | BB9: 54 | BC9: 55 | BD9: 56 | BE9: 57 | BF9: 58 | BG9: 59 | BH9: 60 | BI9: 61 | BJ9: 62 | BK9: 63 | BL9: 64 | BM9: 65 | BN9: 66 | BO9: 67 | BP9: 68 | BQ9: 69 | BR9: 70 | BS9: 71 | BT9: 72 | BU9: 73 | BV9: 74 | BW9: 75 | BX9: 76 | BY9: 77 | BZ9: 78 | CA9: 79 | CB9: 80 | CC9: 81 | CD9: 82 | CE9: 83 | CF9: 84 | CG9: 85 | CH9: 86 | CI9: 87 | CJ9: 88 | CK9: 89 | CL9: 90 | CM9: 91 | CN9: 92 | CO9: 93 | CP9: 94 | CQ9: 95 | CR9: 96 | CS9: 97 | CT9: 98 | CU9: 99 | CV9: 100 | CW9: 101 | CX9: 102 | CY9: 103 | CZ9: 104 | DA9: 105 | DB9: 106 | DC9: 107 | DD9: 108 | DE9: 109 | DF9: 110 | DG9: 111 | DH9: 112 | DI9: 113 | DJ9: 114 | DK9: 115 | DL9: 116 | DM9: 117 | DN9: 118 | DO9: 119 | DP9: 120 | DQ9: 121 | DR9: 122 | DS9: 123 | DT9: 124 | DU9: 125 | DV9: 126 | DW9: 127 | DX9: 128 | DY9: 129 | DZ9: 130 | EA9: 131 | EB9: 132 | EC9: 133 | ED9: 134 | EE9: 135 | EF9: 136 | EG9: 137 | EH9: 138 | EI9: 139 | EJ9: 140 | EK9: 141 | EL9: 142 | EM9: 143 | EN9: 144 | EO9: 145 | EP9: 146 | EQ9: 147 | ER9: 148 | ES9: 149 | ET9: 150 | EU9: 151 | EV9: 152 | EW9: 153 | EX9: 154 | EY9: 155 | EZ9: 156 | FA9: 157 | FB9: 158 | FC9: 159 | FD9: 160 | FE9: 161 | FF9: 162 | FG9: 163 | FH9: 164 | FI9: 165 | FJ9: 166 | FK9: 167 | FL9: 168 | FM9: 169 | FN9: 170 | FO9: 171 | FP9: 172 | FQ9: 173 | FR9: 174 | FS9: 175 | FT9: 176 | FU9: 177 | FV9: 178 | FW9: 179 | FX9: 180 | FY9: 181 | FZ9: 182 | GA9: 183 | GB9: 184 | GC9: 185 | GD9: 186 | GE9: 187 | GF9: 188 | GG9: 189 | GH9: 190 | GI9: 191 | GJ9: 192 | GK9: 193
B10: GEO/TIME | C10: 2010-01-01 | D10: 2010-02-01 | E10: 2010-03-01 | F10: 2010-04-01 | G10: 2010-05-01 | H10: 2010-06-01 | I10: 2010-07-01 | J10: 2010-08-01 | K10: 2010-09-01 | L10: 2010-10-01 | M10: 2010-11-01 | N10: 2010-12-01 | O10: 2010-12-31 | P10: 2011-01-01 | Q10: 2011-02-01 | R10: 2011-03-01 | S10: 2011-04-01 | T10: 2011-05-01 | U10: 2011-06-01 | V10: 2011-07-01 | W10: 2011-08-01 | X10: 2011-09-01 | Y10: 2011-10-01 | Z10: 2011-11-01 | AA10: 2011-12-01 | AB10: 2011-12-31 | AC10: 2012-01-01 | AD10: 2012-02-01 | AE10: 2012-03-01 | AF10: 2012-04-01 | AG10: 2012-05-01 | AH10: 2012-06-01 | AI10: 2012-07-01 | AJ10: 2012-08-01 | AK10: 2012-09-01 | AL10: 2012-10-01 | AM10: 2012-11-01 | AN10: 2012-12-01 | AO10: 2012-12-31 | AP10: 2013-01-01 | AQ10: 2013-02-01 | AR10: 2013-03-01 | AS10: 2013-04-01 | AT10: 2013-05-01 | AU10: 2013-06-01 | AV10: 2013-07-01 | AW10: 2013-08-01 | AX10: 2013-09-01 | AY10: 2013-10-01 | AZ10: 2013-11-01 | BA10: 2013-12-01 | BB10: 2013-12-31 | BC10: 2014-01-01 | BD10: 2014-02-01 | BE10: 2014-03-01 | BF10: 2014-04-01 | BG10: 2014-05-01 | BH10: 2014-06-01 | BI10: 2014-07-01 | BJ10: 2014-08-01 | BK10: 2014-09-01 | BL10: 2014-10-01 | BM10: 2014-11-01 | BN10: 2014-12-01 | BO10: 2014-12-31 | BP10: 2015-01-01 | BQ10: 2015-02-01 | BR10: 2015-03-01 | BS10: 2015-04-01 | BT10: 2015-05-01 | BU10: 2015-06-01 | BV10: 2015-07-01 | BW10: 2015-08-01 | BX10: 2015-09-01 | BY10: 2015-10-01 | BZ10: 2015-11-01 | CA10: 2015-12-01 | CB10: 2015-12-31 | CC10: 2016-01-01 | CD10: 2016-02-01 | CE10: 2016-03-01 | CF10: 2016-04-01 | CG10: 2016-05-01 | CH10: 2016-06-01 | CI10: 2016-07-01 | CJ10: 2016-08-01 | CK10: 2016-09-01 | CL10: 2016-10-01 | CM10: 2016-11-01 | CN10: 2016-12-01 | CO10: 2016-12-31 | CP10: 2017-01-01 | CQ10: 2017-02-01 | CR10: 2017-03-01 | CS10: 2017-04-01 | CT10: 2017-05-01 | CU10: 2017-06-01 | CV10: 2017-07-01 | CW10: 2017-08-01 | CX10: 2017-09-01 | CY10: 2017-10-01 | CZ10: 2017-11-01 | DA10: 2017-12-01 | DB10: 2017-12-31 | DC10: 2018-01-01 | DD10: 2018-02-01 | DE10: 01.03.018 | DF10: 2018-04-01 | DG10: 2018-05-01 | DH10: 2018-06-01 | DI10: 2018-07-01 | DJ10: 2018-08-01 | DK10: 2018-09-01 | DL10: 2018-10-01 | DM10: 2018-11-01 | DN10: 2018-12-01 | DO10: 2018-12-31 | DP10: 2019-01-01 | DQ10: 2019-02-01 | DR10: 2019-03-01 | DS10: 2019-04-01 | DT10: 2019-05-01 | DU10: 2019-06-01 | DV10: 2019-07-01 | DW10: 2019-08-01 | DX10: 2019-09-01 | DY10: 2019-10-01 | DZ10: 2019-11-01 | EA10: 2019-12-01 | EB10: 2019-12-31 | EC10: 2020-01-01 | ED10: 2020-02-01 | EE10: 2020-03-01 | EF10: 2020-04-01 | EG10: 2020-05-01 | EH10: 2020-06-01 | EI10: 2020-07-01 | EJ10: 2020-08-01 | EK10: 2020-09-01 | EL10: 2020-10-01 | EM10: 2020-11-01 | EN10: 2020-12-01 | EO10: 2020-12-31 | EP10: 2021-01-01 | EQ10: 2021-02-01 | ER10: 2021-03-01 | ES10: 2021-04-01 | ET10: 2021-05-01 | EU10: 2021-06-01 | EV10: 2021-07-01 | EW10: 2021-08-01 | EX10: 2021-09-01 | EY10: 2021-10-01 | EZ10: 2021-11-01 | FA10: 2021-12-01 | FB10: 2021-12-31 | FC10: 2022-01-01 | FD10: 2022-02-01 | FE10: 2022-03-01 | FF10: 2022-04-01 | FG10: 2022-05-01 | FH10: 2022-06-01 | FI10: 2022-07-01 | FJ10: 2022-08-01 | FK10: 2022-09-01 | FL10: 2022-10-01 | FM10: 2022-11-01 | FN10: 2022-12-01 | FO10: 2022-12-31 | FP10: 2023-01-01 | FQ10: 2023-02-01 | FR10: 2023-03-01 | FS10: 2023-04-01 | FT10: 2023-05-01 | FU10: 2023-06-01 | FV10: 2023-07-01 | FW10: 2023-08-01 | FX10: 2023-09-01 | FY10: 2023-10-01 | FZ10: 2023-11-01 | GA10: 2023-12-01 | GB10: 2023-12-31 | GC10: 2024-01-01 | GD10: 2024-02-01 | GE10: 2024-03-01 | GF10: 2024-04-01 | GG10: 2024-05-01 | GH10: 2024-06-01 | GI10: 2024-07-01 | GJ10: 2024-08-01 | GK10: 2024-09-01
A11: BEL | B11: Belgien | C11: 0.8 | D11: 0.8 | E11: 1.9 | F11: 2.1 | G11: 2.5 | H11: 2.7 | I11: 2.4 | J11: 2.4 | K11: 2.9 | L11: 3.1 | M11: 3 | N11: 3.4 | O11: 2.3 | P11: 3.5 | Q11: 3.5 | R11: 3.3 | S11: 3.1 | T11: 2.9 | U11: 3.3 | V11: 4 | W11: 3.4 | X11: 3.2 | Y11: 3.2 | Z11: 3.5 | AA11: 3.2 | AB11: 3.4 | AC11: 3.3 | AD11: 3.4 | AE11: 3.1 | AF11: 2.9 | AG11: 2.6 | AH11: 2.2 | AI11: 2 | AJ11: 2.6 | AK11: 2.6 | AL11: 2.7 | AM11: 2.2 | AN11: 2.1 | AO11: 2.6 | AP11: 1.5 | AQ11: 1.4 | AR11: 1.3 | AS11: 1.1 | AT11: 1.1 | AU11: 1.5 | AV11: 1.6 | AW11: 1.1 | AX11: 1 | AY11: 0.7 | AZ11: 0.9 | BA11: 1.2 | BB11: 1.2 | BC11: 1.1 | BD11: 1 | BE11: 0.9 | BF11: 0.9 | BG11: 0.8 | BH11: 0.7 | BI11: 0.6 | BJ11: 0.4 | BK11: 0.2 | BL11: 0.3 | BM11: 0.1 | BN11: -0.4 | BO11: 0.5 | BP11: -0.6 | BQ11: -0.4 | BR11: -0.1 | BS11: 0.4 | BT11: 0.8 | BU11: 0.9 | BV11: 0.9 | BW11: 0.8 | BX11: 0.9 | BY11: 1.2 | BZ11: 1.4 | CA11: 1.5 | CB11: 0.6 | CC11: 1.8 | CD11: 1.1 | CE11: 1.6 | CF11: 1.5 | CG11: 1.6 | CH11: 1.8 | CI11: 2 | CJ11: 2 | CK11: 1.8 | CL11: 1.9 | CM11: 1.7 | CN11: 2.2 | CO11: 1.8 | CP11: 3.1 | CQ11: 3.3 | CR11: 2.5 | CS11: 2.7 | CT11: 1.9 | CU11: 1.5 | CV11: 1.8 | CW11: 2 | CX11: 2 | CY11: 1.8 | CZ11: 2.1 | DA11: 2.1 | DB11: 2.2 | DC11: 1.8 | DD11: 1.5 | DE11: 1.5 | DF11: 1.6 | DG11: 2.3 | DH11: 2.6 | DI11: 2.7 | DJ11: 2.6 | DK11: 2.8 | DL11: 3.2 | DM11: 2.9 | DN11: 2.2 | DO11: 2.3 | DP11: 1.8 | DQ11: 2 | DR11: 2.2 | DS11: 2 | DT11: 1.7 | DU11: 1.3 | DV11: 1.2 | DW11: 0.9 | DX11: 0.6 | DY11: 0.2 | DZ11: 0.4 | EA11: 0.9 | EB11: 1.2 | EC11: 1.4 | ED11: 1 | EE11: 0.4 | EF11: 0 | EG11: -0.2 | EH11: 0.2 | EI11: 1.7 | EJ11: -0.9 | EK11: 0.5 | EL11: 0.4 | EM11: 0.2 | EN11: 0.4 | EO11: 0.4 | EP11: 0.6 | EQ11: 0.3 | ER11: 1.6 | ES11: 2.1 | ET11: 2.5 | EU11: 2.6 | EV11: 1.4 | EW11: 4.7 | EX11: 3.8 | EY11: 5.4 | EZ11: 7.1 | FA11: 6.6 | FB11: 3.2 | FC11: 8.5 | FD11: 9.5 | FE11: 9.3 | FF11: 9.3 | FG11: 9.9 | FH11: 10.5 | FI11: 10.4 | FJ11: 10.5 | FK11: 12.1 | FL11: 13.1 | FM11: 10.5 | FN11: 10.2 | FO11: 10.3 | FP11: 7.4 | FQ11: 5.4 | FR11: 4.9 | FS11: 3.3 | FT11: 2.7 | FU11: 1.6 | FV11: 1.7 | FW11: 2.4 | FX11: 0.7 | FY11: -1.7 | FZ11: -0.8 | GA11: 0.5 | GB11: 2.3 | GC11: 1.5 | GD11: 3.6 | GE11: 3.8 | GF11: 4.9 | GG11: 4.9 | GH11: 5.4 | GI11: 5.4 | GJ11: 4.3 | GK11: 4.3
A12: BGR | B12: Bulgarien | C12: 1.8 | D12: 1.7 | E12: 2.4 | F12: 3 | G12: 3 | H12: 2.5 | I12: 3.2 | J12: 3.2 | K12: 3.6 | L12: 3.6 | M12: 4 | N12: 4.4 | O12: 3 | P12: 4.3 | Q12: 4.6 | R12: 4.6 | S12: 3.3 | T12: 3.4 | U12: 3.5 | V12: 3.4 | W12: 3.1 | X12: 2.9 | Y12: 3 | Z12: 2.6 | AA12: 2 | AB12: 3.4 | AC12: 1.9 | AD12: 2 | AE12: 1.7 | AF12: 2 | AG12: 1.8 | AH12: 1.6 | AI12: 2.4 | AJ12: 3.1 | AK12: 3.4 | AL12: 3 | AM12: 2.7 | AN12: 2.8 | AO12: 2.4 | AP12: 2.6 | AQ12: 2.2 | AR12: 1.6 | AS12: 0.9 | AT12: 1 | AU12: 1.2 | AV12: 0 | AW12: -0.7 | AX12: -1.3 | AY12: -1.1 | AZ12: -1 | BA12: -0.9 | BB12: 0.4 | BC12: -1.4 | BD12: -2.1 | BE12: -2 | BF12: -1.3 | BG12: -1.8 | BH12: -1.8 | BI12: -1.1 | BJ12: -1 | BK12: -1.4 | BL12: -1.5 | BM12: -1.9 | BN12: -2 | BO12: -1.6 | BP12: -2.4 | BQ12: -1.7 | BR12: -1.1 | BS12: -0.9 | BT12: -0.3 | BU12: -0.6 | BV12: -1 | BW12: -0.8 | BX12: -0.9 | BY12: -1.2 | BZ12: -0.9 | CA12: -0.9 | CB12: -1.1 | CC12: -0.4 | CD12: -1 | CE12: -1.9 | CF12: -2.5 | CG12: -2.5 | CH12: -1.9 | CI12: -1.1 | CJ12: -1.1 | CK12: -1.1 | CL12: -1 | CM12: -0.8 | CN12: -0.5 | CO12: -1.3 | CP12: 0.4 | CQ12: 0.9 | CR12: 1 | CS12: 1.7 | CT12: 1.4 | CU12: 1.1 | CV12: 0.6 | CW12: 0.7 | CX12: 1.3 | CY12: 1.5 | CZ12: 1.9 | DA12: 1.8 | DB12: 1.2 | DC12: 1.3 | DD12: 1.5 | DE12: 1.9 | DF12: 1.7 | DG12: 2.3 | DH12: 3 | DI12: 3.6 | DJ12: 3.7 | DK12: 3.6 | DL12: 3.6 | DM12: 3 | DN12: 2.3 | DO12: 2.6 | DP12: 2.3 | DQ12: 2.4 | DR12: 2.8 | DS12: 3.1 | DT12: 2.9 | DU12: 2.3 | DV12: 2.6 | DW12: 2.5 | DX12: 1.6 | DY12: 1.6 | DZ12: 2.2 | EA12: 3.1 | EB12: 2.5 | EC12: 3.4 | ED12: 3.1 | EE12: 2.4 | EF12: 1.3 | EG12: 1 | EH12: 0.9 | EI12: 0.4 | EJ12: 0.6 | EK12: 0.6 | EL12: 0.6 | EM12: 0.3 | EN12: 0 | EO12: 1.2 | EP12: -0.3 | EQ12: 0.2 | ER12: 0.8 | ES12: 2 | ET12: 2.3 | EU12: 2.4 | EV12: 2.2 | EW12: 2.5 | EX12: 4 | EY12: 5.2 | EZ12: 6.3 | FA12: 6.6 | FB12: 2.8 | FC12: 7.7 | FD12: 8.4 | FE12: 10.5 | FF12: 12.1 | FG12: 13.4 | FH12: 14.8 | FI12: 14.9 | FJ12: 15 | FK12: 15.6 | FL12: 14.8 | FM12: 14.3 | FN12: 14.3 | FO12: 13 | FP12: 14.3 | FQ12: 13.7 | FR12: 12.1 | FS12: 10.3 | FT12: 8.6 | FU12: 7.5 | FV12: 7.8 | FW12: 7.5 | FX12: 6.4 | FY12: 5.9 | FZ12: 5.5 | GA12: 5 | GB12: 8.6 | GC12: 3.9 | GD12: 3.5 | GE12: 3.1 | GF12: 2.5 | GG12: 2.7 | GH12: 2.8 | GI12: 2.8 | GJ12: 2.4 | GK12: 1.5
A13: CZE | B13: Tschechische Republik | C13: 0.4 | D13: 0.4 | E13: 0.4 | F13: 0.9 | G13: 1 | H13: 1 | I13: 1.6 | J13: 1.5 | K13: 1.8 | L13: 1.8 | M13: 1.9 | N13: 2.3 | O13: 1.2 | P13: 1.9 | Q13: 1.9 | R13: 1.9 | S13: 1.6 | T13: 2 | U13: 1.9 | V13: 1.9 | W13: 2.1 | X13: 2.1 | Y13: 2.6 | Z13: 2.9 | AA13: 2.8 | AB13: 2.1 | AC13: 3.8 | AD13: 4 | AE13: 4.2 | AF13: 4 | AG13: 3.5 | AH13: 3.8 | AI13: 3.3 | AJ13: 3.4 | AK13: 3.5 | AL13: 3.6 | AM13: 2.8 | AN13: 2.4 | AO13: 3.5 | AP13: 1.8 | AQ13: 1.8 | AR13: 1.5 | AS13: 1.7 | AT13: 1.2 | AU13: 1.6 | AV13: 1.4 | AW13: 1.2 | AX13: 1 | AY13: 0.8 | AZ13: 1 | BA13: 1.5 | BB13: 1.4 | BC13: 0.3 | BD13: 0.3 | BE13: 0.3 | BF13: 0.2 | BG13: 0.5 | BH13: 0 | BI13: 0.6 | BJ13: 0.7 | BK13: 0.8 | BL13: 0.7 | BM13: 0.6 | BN13: 0.1 | BO13: 0.4 | BP13: -0.1 | BQ13: -0.1 | BR13: 0.1 | BS13: 0.5 | BT13: 0.7 | BU13: 0.9 | BV13: 0.4 | BW13: 0.2 | BX13: 0.2 | BY13: 0.2 | BZ13: 0 | CA13: -0.1 | CB13: 0.3 | CC13: 0.5 | CD13: 0.5 | CE13: 0.3 | CF13: 0.5 | CG13: 0 | CH13: -0.1 | CI13: 0.5 | CJ13: 0.6 | CK13: 0.5 | CL13: 0.8 | CM13: 1.6 | CN13: 2.1 | CO13: 0.6 | CP13: 2.3 | CQ13: 2.6 | CR13: 2.6 | CS13: 2.1 | CT13: 2.5 | CU13: 2.4 | CV13: 2.4 | CW13: 2.4 | CX13: 2.5 | CY13: 2.8 | CZ13: 2.5 | DA13: 2.2 | DB13: 2.4 | DC13: 2.1 | DD13: 1.6 | DE13: 1.6 | DF13: 1.8 | DG13: 2 | DH13: 2.4 | DI13: 2.2 | DJ13: 2.4 | DK13: 2.1 | DL13: 2 | DM13: 1.6 | DN13: 1.6 | DO13: 2 | DP13: 2 | DQ13: 2.4 | DR13: 2.6 | DS13: 2.4 | DT13: 2.6 | DU13: 2.4 | DV13: 2.6 | DW13: 2.6 | DX13: 2.6 | DY13: 2.6 | DZ13: 3 | EA13: 3.2 | EB13: 2.6 | EC13: 3.8 | ED13: 3.7 | EE13: 3.6 | EF13: 3.3 | EG13: 3.1 | EH13: 3.4 | EI13: 3.6 | EJ13: 3.5 | EK13: 3.3 | EL13: 2.9 | EM13: 2.8 | EN13: 2.4 | EO13: 3.3 | EP13: 2.2 | EQ13: 2.1 | ER13: 2.3 | ES13: 3.1 | ET13: 2.7 | EU13: 2.5 | EV13: 2.7 | EW13: 3.1 | EX13: 4 | EY13: 4.8 | EZ13: 4.8 | FA13: 5.4 | FB13: 3.3 | FC13: 8.8 | FD13: 10 | FE13: 11.9 | FF13: 13.2 | FG13: 15.2 | FH13: 16.6 | FI13: 17.3 | FJ13: 17.1 | FK13: 17.8 | FL13: 15.5 | FM13: 17.2 | FN13: 16.8 | FO13: 14.8 | FP13: 19.1 | FQ13: 18.4 | FR13: 16.5 | FS13: 14.3 | FT13: 12.5 | FU13: 11.2 | FV13: 10.2 | FW13: 10.1 | FX13: 8.3 | FY13: 9.5 | FZ13: 8 | GA13: 7.6 | GB13: 12 | GC13: 2.7 | GD13: 2.2 | GE13: 2.2 | GF13: 3.1 | GG13: 2.8 | GH13: 2.2 | GI13: 2.5 | GJ13: 2.4 | GK13: 2.8
A14: DNK | B14: Dänemark | C14: 1.9 | D14: 1.8 | E14: 2.1 | F14: 2.4 | G14: 1.9 | H14: 1.7 | I14: 2.1 | J14: 2.3 | K14: 2.5 | L14: 2.4 | M14: 2.5 | N14: 2.8 | O14: 2.2 | P14: 2.6 | Q14: 2.6 | R14: 2.5 | S14: 2.8 | T14: 3.1 | U14: 2.9 | V14: 3 | W14: 2.4 | X14: 2.4 | Y14: 2.7 | Z14: 2.5 | AA14: 2.4 | AB14: 2.7 | AC14: 2.8 | AD14: 2.7 | AE14: 2.7 | AF14: 2.3 | AG14: 2.1 | AH14: 2.2 | AI14: 2.1 | AJ14: 2.6 | AK14: 2.5 | AL14: 2.3 | AM14: 2.2 | AN14: 1.9 | AO14: 2.4 | AP14: 1 | AQ14: 1 | AR14: 0.7 | AS14: 0.4 | AT14: 0.6 | AU14: 0.6 | AV14: 0.4 | AW14: 0.1 | AX14: 0.2 | AY14: 0.3 | AZ14: 0.3 | BA14: 0.4 | BB14: 0.5 | BC14: 0.8 | BD14: 0.3 | BE14: 0.2 | BF14: 0.5 | BG14: 0.3 | BH14: 0.4 | BI14: 0.5 | BJ14: 0.3 | BK14: 0.3 | BL14: 0.3 | BM14: 0.2 | BN14: 0.1 | BO14: 0.3 | BP14: -0.3 | BQ14: 0 | BR14: 0.3 | BS14: 0.4 | BT14: 0.4 | BU14: 0.4 | BV14: 0.5 | BW14: 0.3 | BX14: 0.3 | BY14: 0.2 | BZ14: 0.1 | CA14: 0.3 | CB14: 0.2 | CC14: 0.4 | CD14: 0.1 | CE14: -0.3 | CF14: -0.3 | CG14: -0.1 | CH14: 0.1 | CI14: 0.1 | CJ14: 0 | CK14: -0.3 | CL14: 0.1 | CM14: 0.1 | CN14: 0.3 | CO14: 0 | CP14: 0.7 | CQ14: 0.9 | CR14: 0.9 | CS14: 1 | CT14: 0.7 | CU14: 0.4 | CV14: 1.5 | CW14: 1.5 | CX14: 1.6 | CY14: 1.4 | CZ14: 1.3 | DA14: 0.8 | DB14: 1.1 | DC14: 0.6 | DD14: 0.5 | DE14: 0.4 | DF14: 0.7 | DG14: 1 | DH14: 1.1 | DI14: 0.9 | DJ14: 0.8 | DK14: 0.5 | DL14: 0.7 | DM14: 0.7 | DN14: 0.7 | DO14: 0.7 | DP14: 1.2 | DQ14: 1.1 | DR14: 1.2 | DS14: 0.9 | DT14: 0.7 | DU14: 0.5 | DV14: 0.4 | DW14: 0.5 | DX14: 0.4 | DY14: 0.6 | DZ14: 0.6 | EA14: 0.8 | EB14: 0.7 | EC14: 0.8 | ED14: 0.7 | EE14: 0.3 | EF14: -0.1 | EG14: -0.2 | EH14: 0.2 | EI14: 0.4 | EJ14: 0.4 | EK14: 0.5 | EL14: 0.3 | EM14: 0.4 | EN14: 0.4 | EO14: 0.3 | EP14: 0.4 | EQ14: 0.5 | ER14: 0.9 | ES14: 1.5 | ET14: 1.9 | EU14: 1.9 | EV14: 1.7 | EW14: 1.8 | EX14: 2.4 | EY14: 3.2 | EZ14: 3.8 | FA14: 3.4 | FB14: 1.9 | FC14: 4.9 | FD14: 5.3 | FE14: 6 | FF14: 7.4 | FG14: 8.2 | FH14: 9.1 | FI14: 9.6 | FJ14: 9.9 | FK14: 11.1 | FL14: 11.4 | FM14: 9.7 | FN14: 9.6 | FO14: 8.5 | FP14: 8.4 | FQ14: 8.3 | FR14: 7.3 | FS14: 5.6 | FT14: 2.9 | FU14: 2.4 | FV14: 3.2 | FW14: 2.3 | FX14: 0.6 | FY14: -0.4 | FZ14: 0.3 | GA14: 0.4 | GB14: 3.4 | GC14: 0.9 | GD14: 0.6 | GE14: 0.8 | GF14: 0.5 | GG14: 2.1 | GH14: 1.8 | GI14: 1 | GJ14: 1.4 | GK14: 1.2
A15: DEU | B15: Deutschland (bis 1990 früheres Gebiet der BRD) | C15: 0.8 | D15: 0.5 | E15: 1.2 | F15: 1 | G15: 1.2 | H15: 0.8 | I15: 1.2 | J15: 1 | K15: 1.3 | L15: 1.3 | M15: 1.6 | N15: 1.9 | O15: 1.2 | P15: 2 | Q15: 2.2 | R15: 2.3 | S15: 2.7 | T15: 2.4 | U15: 2.4 | V15: 2.6 | W15: 2.5 | X15: 2.9 | Y15: 2.9 | Z15: 2.8 | AA15: 2.3 | AB15: 2.5 | AC15: 2.3 | AD15: 2.5 | AE15: 2.3 | AF15: 2.2 | AG15: 2.2 | AH15: 2 | AI15: 1.9 | AJ15: 2.2 | AK15: 2.1 | AL15: 2.1 | AM15: 1.9 | AN15: 2 | AO15: 2.1 | AP15: 1.9 | AQ15: 1.8 | AR15: 1.8 | AS15: 1.1 | AT15: 1.6 | AU15: 1.9 | AV15: 1.9 | AW15: 1.6 | AX15: 1.6 | AY15: 1.2 | AZ15: 1.6 | BA15: 1.2 | BB15: 1.6 | BC15: 1.2 | BD15: 1 | BE15: 0.9 | BF15: 1.1 | BG15: 0.6 | BH15: 1 | BI15: 0.8 | BJ15: 0.8 | BK15: 0.8 | BL15: 0.7 | BM15: 0.5 | BN15: 0.1 | BO15: 0.8 | BP15: -0.5 | BQ15: 0 | BR15: 0.2 | BS15: 0.3 | BT15: 0.7 | BU15: 0.1 | BV15: 0.1 | BW15: 0.1 | BX15: -0.2 | BY15: 0.2 | BZ15: 0.3 | CA15: 0.2 | CB15: 0.1 | CC15: 0.4 | CD15: -0.2 | CE15: 0.1 | CF15: -0.3 | CG15: 0 | CH15: 0.2 | CI15: 0.4 | CJ15: 0.3 | CK15: 0.5 | CL15: 0.7 | CM15: 0.7 | CN15: 1.7 | CO15: 0.4 | CP15: 1.7 | CQ15: 2.1 | CR15: 1.5 | CS15: 2 | CT15: 1.3 | CU15: 1.7 | CV15: 1.7 | CW15: 1.9 | CX15: 1.9 | CY15: 1.5 | CZ15: 1.7 | DA15: 1.5 | DB15: 1.7 | DC15: 1.5 | DD15: 1.2 | DE15: 1.7 | DF15: 1.3 | DG15: 2.5 | DH15: 2.1 | DI15: 2.2 | DJ15: 2.1 | DK15: 2.2 | DL15: 2.6 | DM15: 2.2 | DN15: 1.7 | DO15: 1.9 | DP15: 1.7 | DQ15: 1.7 | DR15: 1.4 | DS15: 2.1 | DT15: 1.3 | DU15: 1.5 | DV15: 1.1 | DW15: 1 | DX15: 0.9 | DY15: 0.9 | DZ15: 1.2 | EA15: 1.5 | EB15: 1.4 | EC15: 1.6 | ED15: 1.7 | EE15: 1.3 | EF15: 0.8 | EG15: 0.5 | EH15: 0.8 | EI15: 0 | EJ15: -0.1 | EK15: -0.4 | EL15: -0.5 | EM15: -0.7 | EN15: -0.7 | EO15: 0.4 | EP15: 1.6 | EQ15: 1.6 | ER15: 2 | ES15: 2.1 | ET15: 2.4 | EU15: 2.1 | EV15: 3.1 | EW15: 3.4 | EX15: 4.1 | EY15: 4.6 | EZ15: 6 | FA15: 5.7 | FB15: 3.2 | FC15: 5.1 | FD15: 5.5 | FE15: 7.6 | FF15: 7.8 | FG15: 8.7 | FH15: 8.2 | FI15: 8.5 | FJ15: 8.8 | FK15: 10.9 | FL15: 11.6 | FM15: 11.3 | FN15: 9.6 | FO15: 8.7 | FP15: 9.2 | FQ15: 9.3 | FR15: 7.8 | FS15: 7.6 | FT15: 6.3 | FU15: 6.8 | FV15: 6.5 | FW15: 6.4 | FX15: 4.3 | FY15: 3 | FZ15: 2.3 | GA15: 3.8 | GB15: 6 | GC15: 3.1 | GD15: 2.7 | GE15: 2.3 | GF15: 2.4 | GG15: 2.8 | GH15: 2.5 | GI15: 2.6 | GJ15: 2 | GK15: 1.8
A16: EST | B16: Estland | C16: -1 | D16: -0.3 | E16: 1.4 | F16: 2.5 | G16: 2.8 | H16: 3.4 | I16: 2.8 | J16: 2.8 | K16: 3.8 | L16: 4.5 | M16: 5 | N16: 5.4 | O16: 2.7 | P16: 5.1 | Q16: 5.5 | R16: 5.1 | S16: 5.4 | T16: 5.5 | U16: 4.9 | V16: 5.3 | W16: 5.6 | X16: 5.4 | Y16: 4.7 | Z16: 4.4 | AA16: 4.1 | AB16: 5.1 | AC16: 4.7 | AD16: 4.4 | AE16: 4.7 | AF16: 4.3 | AG16: 4.1 | AH16: 4.4 | AI16: 4.1 | AJ16: 4.2 | AK16: 4.1 | AL16: 4.2 | AM16: 3.8 | AN16: 3.6 | AO16: 4.2 | AP16: 3.7 | AQ16: 4 | AR16: 3.8 | AS16: 3.4 | AT16: 3.6 | AU16: 4.1 | AV16: 3.9 | AW16: 3.6 | AX16: 2.6 | AY16: 2.2 | AZ16: 2.1 | BA16: 2 | BB16: 3.2 | BC16: 1.6 | BD16: 1.1 | BE16: 0.7 | BF16: 0.8 | BG16: 0.6 | BH16: 0.4 | BI16: 0 | BJ16: -0.2 | BK16: 0.2 | BL16: 0.5 | BM16: 0 | BN16: 0.1 | BO16: 0.5 | BP16: -0.5 | BQ16: -0.2 | BR16: 0 | BS16: 0.4 | BT16: 0.5 | BU16: 0.3 | BV16: 0.1 | BW16: 0.2 | BX16: -0.3 | BY16: 0 | BZ16: 0.5 | CA16: -0.2 | CB16: 0.1 | CC16: 0.1 | CD16: 0.4 | CE16: 0.5 | CF16: 0 | CG16: 0 | CH16: 0.4 | CI16: 0.8 | CJ16: 1.1 | CK16: 1.7 | CL16: 1 | CM16: 1.4 | CN16: 2.4 | CO16: 0.8 | CP16: 2.8 | CQ16: 3.4 | CR16: 3 | CS16: 3.6 | CT16: 3.5 | CU16: 3.1 | CV16: 3.9 | CW16: 4.2 | CX16: 3.9 | CY16: 4 | CZ16: 4.5 | DA16: 3.8 | DB16: 3.7 | DC16: 3.6 | DD16: 3.2 | DE16: 2.9 | DF16: 2.9 | DG16: 3.1 | DH16: 3.9 | DI16: 3.3 | DJ16: 3.5 | DK16: 3.5 | DL16: 4.5 | DM16: 3.2 | DN16: 3.3 | DO16: 3.4 | DP16: 2.8 | DQ16: 1.9 | DR16: 2.2 | DS16: 3.2 | DT16: 3.1 | DU16: 2.6 | DV16: 2 | DW16: 2.1 | DX16: 2.2 | DY16: 1.4 | DZ16: 1.8 | EA16: 1.8 | EB16: 2.3 | EC16: 1.6 | ED16: 2 | EE16: 1 | EF16: -0.9 | EG16: -1.8 | EH16: -1.6 | EI16: -1.3 | EJ16: -1.3 | EK16: -1.3 | EL16: -1.7 | EM16: -1.2 | EN16: -0.9 | EO16: -0.6 | EP16: 0.3 | EQ16: 0.5 | ER16: 0.9 | ES16: 1.6 | ET16: 3.2 | EU16: 3.7 | EV16: 4.9 | EW16: 5 | EX16: 6.4 | EY16: 6.8 | EZ16: 8.6 | FA16: 12 | FB16: 4.5 | FC16: 11 | FD16: 11.6 | FE16: 14.8 | FF16: 19.1 | FG16: 20.1 | FH16: 22 | FI16: 23.2 | FJ16: 25.2 | FK16: 24.1 | FL16: 22.5 | FM16: 21.4 | FN16: 17.5 | FO16: 19.4 | FP16: 18.6 | FQ16: 17.8 | FR16: 15.6 | FS16: 13.2 | FT16: 11.2 | FU16: 9 | FV16: 6.2 | FW16: 4.3 | FX16: 3.9 | FY16: 5 | FZ16: 4.1 | GA16: 4.3 | GB16: 9.1 | GC16: 5 | GD16: 4.4 | GE16: 4.1 | GF16: 3.1 | GG16: 3.1 | GH16: 2.8 | GI16: 3.5 | GJ16: 3.4 | GK16: 3.2
A17: IRL | B17: Irland | C17: -2.4 | D17: -2.4 | E17: -2.4 | F17: -2.5 | G17: -1.9 | H17: -2 | I17: -1.2 | J17: -1.2 | K17: -1 | L17: -0.8 | M17: -0.8 | N17: -0.2 | O17: -1.6 | P17: 0.2 | Q17: 0.9 | R17: 1.2 | S17: 1.5 | T17: 1.2 | U17: 1.1 | V17: 1 | W17: 1 | X17: 1.3 | Y17: 1.5 | Z17: 1.7 | AA17: 1.4 | AB17: 1.2 | AC17: 1.3 | AD17: 1.6 | AE17: 2.2 | AF17: 1.9 | AG17: 1.9 | AH17: 1.9 | AI17: 2 | AJ17: 2.6 | AK17: 2.4 | AL17: 2.1 | AM17: 1.6 | AN17: 1.7 | AO17: 1.9 | AP17: 1.5 | AQ17: 1.2 | AR17: 0.6 | AS17: 0.5 | AT17: 0.5 | AU17: 0.7 | AV17: 0.7 | AW17: 0 | AX17: 0 | AY17: -0.1 | AZ17: 0.3 | BA17: 0.4 | BB17: 0.5 | BC17: 0.3 | BD17: 0.1 | BE17: 0.3 | BF17: 0.4 | BG17: 0.4 | BH17: 0.5 | BI17: 0.5 | BJ17: 0.6 | BK17: 0.5 | BL17: 0.4 | BM17: 0.2 | BN17: -0.3 | BO17: 0.3 | BP17: -0.4 | BQ17: -0.4 | BR17: -0.3 | BS17: -0.4 | BT17: 0.2 | BU17: 0.4 | BV17: 0.2 | BW17: 0.2 | BX17: 0 | BY17: 0 | BZ17: -0.1 | CA17: 0.2 | CB17: 0 | CC17: 0 | CD17: -0.2 | CE17: -0.6 | CF17: -0.2 | CG17: -0.2 | CH17: 0.1 | CI17: 0.1 | CJ17: -0.4 | CK17: -0.3 | CL17: -0.4 | CM17: -0.2 | CN17: -0.2 | CO17: -0.2 | CP17: 0.2 | CQ17: 0.3 | CR17: 0.6 | CS17: 0.7 | CT17: 0 | CU17: -0.6 | CV17: -0.2 | CW17: 0.4 | CX17: 0.2 | CY17: 0.5 | CZ17: 0.5 | DA17: 0.5 | DB17: 0.3 | DC17: 0.3 | DD17: 0.7 | DE17: 0.5 | DF17: -0.1 | DG17: 0.7 | DH17: 0.7 | DI17: 1 | DJ17: 0.9 | DK17: 1.2 | DL17: 1.1 | DM17: 0.8 | DN17: 0.8 | DO17: 0.7 | DP17: 0.8 | DQ17: 0.7 | DR17: 1.1 | DS17: 1.7 | DT17: 1 | DU17: 1.1 | DV17: 0.5 | DW17: 0.6 | DX17: 0.6 | DY17: 0.6 | DZ17: 0.8 | EA17: 1.1 | EB17: 0.9 | EC17: 1.1 | ED17: 0.9 | EE17: 0.5 | EF17: -0.3 | EG17: -0.8 | EH17: -0.6 | EI17: -0.6 | EJ17: -1.1 | EK17: -1.2 | EL17: -1.5 | EM17: -1 | EN17: -1 | EO17: -0.5 | EP17: -0.1 | EQ17: -0.4 | ER17: 0.1 | ES17: 1.1 | ET17: 1.9 | EU17: 1.6 | EV17: 2.2 | EW17: 3 | EX17: 3.8 | EY17: 5.1 | EZ17: 5.4 | FA17: 5.7 | FB17: 2.4 | FC17: 5 | FD17: 5.7 | FE17: 6.9 | FF17: 7.3 | FG17: 8.3 | FH17: 9.6 | FI17: 9.6 | FJ17: 9 | FK17: 8.6 | FL17: 9.4 | FM17: 9 | FN17: 8.2 | FO17: 8.1 | FP17: 7.5 | FQ17: 8.1 | FR17: 7 | FS17: 6.3 | FT17: 5.4 | FU17: 4.8 | FV17: 4.6 | FW17: 4.9 | FX17: 5 | FY17: 3.6 | FZ17: 2.5 | GA17: 3.2 | GB17: 5.2 | GC17: 2.7 | GD17: 2.3 | GE17: 1.7 | GF17: 1.6 | GG17: 2 | GH17: 1.5 | GI17: 1.5 | GJ17: 1.1 | GK17: 0
A18: GRC | B18: Griechenland | C18: 2.3 | D18: 2.9 | E18: 3.9 | F18: 4.7 | G18: 5.3 | H18: 5.2 | I18: 5.5 | J18: 5.6 | K18: 5.7 | L18: 5.2 | M18: 4.8 | N18: 5.2 | O18: 4.7 | P18: 4.9 | Q18: 4.2 | R18: 4.3 | S18: 3.7 | T18: 3.1 | U18: 3.1 | V18: 2.1 | W18: 1.4 | X18: 2.9 | Y18: 2.9 | Z18: 2.8 | AA18: 2.2 | AB18: 3.1 | AC18: 2.1 | AD18: 1.7 | AE18: 1.4 | AF18: 1.5 | AG18: 0.9 | AH18: 1 | AI18: 0.9 | AJ18: 1.2 | AK18: 0.3 | AL18: 0.9 | AM18: 0.4 | AN18: 0.3 | AO18: 1 | AP18: 0 | AQ18: 0.1 | AR18: -0.2 | AS18: -0.6 | AT18: -0.3 | AU18: -0.3 | AV18: -0.5 | AW18: -1 | AX18: -1 | AY18: -1.9 | AZ18: -2.9 | BA18: -1.8 | BB18: -0.9 | BC18: -1.4 | BD18: -0.9 | BE18: -1.5 | BF18: -1.6 | BG18: -2.1 | BH18: -1.5 | BI18: -0.8 | BJ18: -0.2 | BK18: -1.1 | BL18: -1.8 | BM18: -1.2 | BN18: -2.5 | BO18: -1.4 | BP18: -2.8 | BQ18: -1.9 | BR18: -1.9 | BS18: -1.8 | BT18: -1.4 | BU18: -1.1 | BV18: -1.3 | BW18: -0.4 | BX18: -0.8 | BY18: -0.1 | BZ18: -0.1 | CA18: 0.4 | CB18: -1.1 | CC18: -0.1 | CD18: 0.1 | CE18: -0.7 | CF18: -0.4 | CG18: -0.2 | CH18: 0.2 | CI18: 0.2 | CJ18: 0.4 | CK18: -0.1 | CL18: 0.6 | CM18: -0.2 | CN18: 0.3 | CO18: 0 | CP18: 1.5 | CQ18: 1.4 | CR18: 1.7 | CS18: 1.6 | CT18: 1.5 | CU18: 0.9 | CV18: 0.9 | CW18: 0.6 | CX18: 1 | CY18: 0.5 | CZ18: 1.1 | DA18: 1 | DB18: 1.1 | DC18: 0.2 | DD18: 0.4 | DE18: 0.2 | DF18: 0.5 | DG18: 0.8 | DH18: 1 | DI18: 0.8 | DJ18: 0.9 | DK18: 1.1 | DL18: 1.8 | DM18: 1.1 | DN18: 0.6 | DO18: 0.8 | DP18: 0.5 | DQ18: 0.8 | DR18: 1 | DS18: 1.1 | DT18: 0.6 | DU18: 0.2 | DV18: 0.4 | DW18: 0.1 | DX18: 0.2 | DY18: -0.3 | DZ18: 0.5 | EA18: 1.1 | EB18: 0.5 | EC18: 1.1 | ED18: 0.4 | EE18: 0.2 | EF18: -0.9 | EG18: -0.7 | EH18: -1.9 | EI18: -2.1 | EJ18: -2.3 | EK18: -2.3 | EL18: -2 | EM18: -2.1 | EN18: -2.4 | EO18: -1.3 | EP18: -2.4 | EQ18: -1.9 | ER18: -2 | ES18: -1.1 | ET18: -1.2 | EU18: 0.6 | EV18: 0.7 | EW18: 1.2 | EX18: 1.9 | EY18: 2.8 | EZ18: 4 | FA18: 4.4 | FB18: 0.6 | FC18: 5.5 | FD18: 6.3 | FE18: 8 | FF18: 9.1 | FG18: 10.5 | FH18: 11.6 | FI18: 11.3 | FJ18: 11.2 | FK18: 12.1 | FL18: 9.5 | FM18: 8.8 | FN18: 7.6 | FO18: 9.3 | FP18: 7.3 | FQ18: 6.5 | FR18: 5.4 | FS18: 4.5 | FT18: 4.1 | FU18: 2.8 | FV18: 3.5 | FW18: 3.5 | FX18: 2.4 | FY18: 3.8 | FZ18: 2.9 | GA18: 3.7 | GB18: 4.2 | GC18: 3.2 | GD18: 3.1 | GE18: 3.4 | GF18: 3.2 | GG18: 2.4 | GH18: 2.5 | GI18: 3 | GJ18: 3.2 | GK18: 3.1
A19: ESP | B19: Spanien | C19: 0.7 | D19: 0.4 | E19: 2.7 | F19: 2.4 | G19: 2.5 | H19: 2.1 | I19: 1.8 | J19: 1.6 | K19: 2.8 | L19: 2.5 | M19: 2.3 | N19: 2.9 | O19: 2 | P19: 3 | Q19: 3.4 | R19: 3.3 | S19: 3.5 | T19: 3.4 | U19: 3 | V19: 3 | W19: 2.7 | X19: 3 | Y19: 3 | Z19: 2.9 | AA19: 2.4 | AB19: 3.1 | AC19: 2 | AD19: 1.9 | AE19: 1.8 | AF19: 2 | AG19: 1.9 | AH19: 1.8 | AI19: 2.2 | AJ19: 2.7 | AK19: 3.5 | AL19: 3.5 | AM19: 3 | AN19: 3 | AO19: 2.4 | AP19: 2.8 | AQ19: 2.9 | AR19: 2.6 | AS19: 1.5 | AT19: 1.8 | AU19: 2.2 | AV19: 1.9 | AW19: 1.6 | AX19: 0.5 | AY19: 0 | AZ19: 0.3 | BA19: 0.3 | BB19: 1.5 | BC19: 0.3 | BD19: 0.1 | BE19: -0.2 | BF19: 0.3 | BG19: 0.2 | BH19: 0 | BI19: -0.4 | BJ19: -0.5 | BK19: -0.3 | BL19: -0.2 | BM19: -0.5 | BN19: -1.1 | BO19: -0.2 | BP19: -1.5 | BQ19: -1.2 | BR19: -0.8 | BS19: -0.7 | BT19: -0.3 | BU19: 0 | BV19: 0 | BW19: -0.5 | BX19: -1.1 | BY19: -0.9 | BZ19: -0.4 | CA19: -0.1 | CB19: -0.6 | CC19: -0.4 | CD19: -1 | CE19: -1 | CF19: -1.2 | CG19: -1.1 | CH19: -0.9 | CI19: -0.7 | CJ19: -0.3 | CK19: 0 | CL19: 0.5 | CM19: 0.5 | CN19: 1.4 | CO19: -0.3 | CP19: 2.9 | CQ19: 3 | CR19: 2.1 | CS19: 2.6 | CT19: 2 | CU19: 1.6 | CV19: 1.7 | CW19: 2 | CX19: 1.8 | CY19: 1.7 | CZ19: 1.8 | DA19: 1.2 | DB19: 2 | DC19: 0.7 | DD19: 1.2 | DE19: 1.3 | DF19: 1.1 | DG19: 2.1 | DH19: 2.3 | DI19: 2.3 | DJ19: 2.2 | DK19: 2.3 | DL19: 2.3 | DM19: 1.7 | DN19: 1.2 | DO19: 1.7 | DP19: 1 | DQ19: 1.1 | DR19: 1.3 | DS19: 1.6 | DT19: 0.9 | DU19: 0.6 | DV19: 0.6 | DW19: 0.4 | DX19: 0.2 | DY19: 0.2 | DZ19: 0.5 | EA19: 0.8 | EB19: 0.8 | EC19: 1.1 | ED19: 0.9 | EE19: 0.1 | EF19: -0.7 | EG19: -0.9 | EH19: -0.3 | EI19: -0.7 | EJ19: -0.6 | EK19: -0.6 | EL19: -0.9 | EM19: -0.8 | EN19: -0.6 | EO19: -0.3 | EP19: 0.4 | EQ19: -0.1 | ER19: 1.2 | ES19: 2 | ET19: 2.4 | EU19: 2.5 | EV19: 2.9 | EW19: 3.3 | EX19: 4 | EY19: 5.4 | EZ19: 5.5 | FA19: 6.6 | FB19: 3 | FC19: 6.2 | FD19: 7.6 | FE19: 9.8 | FF19: 8.3 | FG19: 8.5 | FH19: 10 | FI19: 10.7 | FJ19: 10.5 | FK19: 9 | FL19: 7.3 | FM19: 6.7 | FN19: 5.5 | FO19: 8.3 | FP19: 5.9 | FQ19: 6 | FR19: 3.1 | FS19: 3.8 | FT19: 2.9 | FU19: 1.6 | FV19: 2.1 | FW19: 2.4 | FX19: 3.3 | FY19: 3.5 | FZ19: 3.3 | GA19: 3.3 | GB19: 3.4 | GC19: 3.5 | GD19: 2.9 | GE19: 3.3 | GF19: 3.4 | GG19: 3.8 | GH19: 3.6 | GI19: 2.9 | GJ19: 2.4 | GK19: 1.7
A20: FRA | B20: Frankreich | C20: 1.2 | D20: 1.4 | E20: 1.7 | F20: 1.9 | G20: 1.9 | H20: 1.7 | I20: 1.9 | J20: 1.6 | K20: 1.8 | L20: 1.8 | M20: 1.8 | N20: 2 | O20: 1.7 | P20: 2 | Q20: 1.8 | R20: 2.2 | S20: 2.2 | T20: 2.2 | U20: 2.3 | V20: 2.1 | W20: 2.4 | X20: 2.4 | Y20: 2.5 | Z20: 2.7 | AA20: 2.7 | AB20: 2.3 | AC20: 2.6 | AD20: 2.5 | AE20: 2.6 | AF20: 2.4 | AG20: 2.3 | AH20: 2.3 | AI20: 2.2 | AJ20: 2.4 | AK20: 2.2 | AL20: 2.1 | AM20: 1.6 | AN20: 1.5 | AO20: 2.2 | AP20: 1.4 | AQ20: 1.2 | AR20: 1.1 | AS20: 0.8 | AT20: 0.9 | AU20: 1 | AV20: 1.2 | AW20: 1 | AX20: 1 | AY20: 0.7 | AZ20: 0.8 | BA20: 0.8 | BB20: 1 | BC20: 0.8 | BD20: 1.1 | BE20: 0.7 | BF20: 0.8 | BG20: 0.8 | BH20: 0.6 | BI20: 0.6 | BJ20: 0.5 | BK20: 0.4 | BL20: 0.5 | BM20: 0.4 | BN20: 0.1 | BO20: 0.6 | BP20: -0.4 | BQ20: -0.3 | BR20: 0 | BS20: 0.1 | BT20: 0.3 | BU20: 0.3 | BV20: 0.2 | BW20: 0.1 | BX20: 0.1 | BY20: 0.2 | BZ20: 0.1 | CA20: 0.3 | CB20: 0.1 | CC20: 0.3 | CD20: -0.1 | CE20: -0.1 | CF20: -0.1 | CG20: 0.1 | CH20: 0.3 | CI20: 0.4 | CJ20: 0.4 | CK20: 0.5 | CL20: 0.5 | CM20: 0.7 | CN20: 0.8 | CO20: 0.3 | CP20: 1.6 | CQ20: 1.4 | CR20: 1.4 | CS20: 1.4 | CT20: 0.9 | CU20: 0.8 | CV20: 0.8 | CW20: 1 | CX20: 1.1 | CY20: 1.2 | CZ20: 1.2 | DA20: 1.2 | DB20: 1.2 | DC20: 1.5 | DD20: 1.3 | DE20: 1.7 | DF20: 1.8 | DG20: 2.3 | DH20: 2.3 | DI20: 2.6 | DJ20: 2.6 | DK20: 2.5 | DL20: 2.5 | DM20: 2.2 | DN20: 1.9 | DO20: 2.1 | DP20: 1.4 | DQ20: 1.6 | DR20: 1.3 | DS20: 1.5 | DT20: 1.1 | DU20: 1.4 | DV20: 1.3 | DW20: 1.3 | DX20: 1.1 | DY20: 0.9 | DZ20: 1.2 | EA20: 1.6 | EB20: 1.3 | EC20: 1.7 | ED20: 1.6 | EE20: 0.8 | EF20: 0.4 | EG20: 0.4 | EH20: 0.2 | EI20: 0.9 | EJ20: 0.2 | EK20: 0 | EL20: 0.1 | EM20: 0.2 | EN20: 0 | EO20: 0.5 | EP20: 0.8 | EQ20: 0.8 | ER20: 1.4 | ES20: 1.6 | ET20: 1.8 | EU20: 1.9 | EV20: 1.5 | EW20: 2.4 | EX20: 2.7 | EY20: 3.2 | EZ20: 3.4 | FA20: 3.4 | FB20: 2.1 | FC20: 3.3 | FD20: 4.2 | FE20: 5.1 | FF20: 5.4 | FG20: 5.8 | FH20: 6.5 | FI20: 6.8 | FJ20: 6.6 | FK20: 6.2 | FL20: 7.1 | FM20: 7.1 | FN20: 6.7 | FO20: 5.9 | FP20: 7 | FQ20: 7.3 | FR20: 6.7 | FS20: 6.9 | FT20: 6 | FU20: 5.3 | FV20: 5.1 | FW20: 5.7 | FX20: 5.7 | FY20: 4.5 | FZ20: 3.9 | GA20: 4.1 | GB20: 5.7 | GC20: 3.4 | GD20: 3.2 | GE20: 2.4 | GF20: 2.4 | GG20: 2.6 | GH20: 2.5 | GI20: 2.7 | GJ20: 2.2 | GK20: 1.4
A21: HRV | B21: Kroatien | C21: 1.3 | D21: 0.9 | E21: 1.1 | F21: 0.8 | G21: 0.9 | H21: 0.6 | I21: 0.9 | J21: 0.8 | K21: 1.4 | L21: 1.4 | M21: 1.2 | N21: 1.7 | O21: 1.1 | P21: 1.8 | Q21: 2.2 | R21: 2.5 | S21: 2.3 | T21: 2.5 | U21: 2 | V21: 1.9 | W21: 2.1 | X21: 2.1 | Y21: 2.5 | Z21: 2.5 | AA21: 2.1 | AB21: 2.2 | AC21: 1.4 | AD21: 1.6 | AE21: 2.1 | AF21: 2.6 | AG21: 3.5 | AH21: 3.6 | AI21: 3.4 | AJ21: 4.1 | AK21: 4.8 | AL21: 4.6 | AM21: 4.1 | AN21: 4.4 | AO21: 3.4 | AP21: 4.6 | AQ21: 4.4 | AR21: 3.4 | AS21: 3.1 | AT21: 1.8 | AU21: 2.2 | AV21: 2.7 | AW21: 2.4 | AX21: 1.7 | AY21: 0.8 | AZ21: 0.7 | BA21: 0.5 | BB21: 2.3 | BC21: 0.4 | BD21: -0.2 | BE21: -0.1 | BF21: -0.1 | BG21: 0.4 | BH21: 0.5 | BI21: 0.5 | BJ21: 0.3 | BK21: 0.2 | BL21: 0.5 | BM21: 0.3 | BN21: -0.1 | BO21: 0.2 | BP21: -0.6 | BQ21: -0.4 | BR21: 0 | BS21: -0.1 | BT21: 0 | BU21: 0.1 | BV21: -0.2 | BW21: -0.1 | BX21: -0.5 | BY21: -0.5 | BZ21: -0.4 | CA21: -0.3 | CB21: -0.3 | CC21: -0.2 | CD21: -0.6 | CE21: -0.9 | CF21: -0.9 | CG21: -1.2 | CH21: -1.2 | CI21: -1.1 | CJ21: -1.5 | CK21: -0.7 | CL21: -0.3 | CM21: 0.2 | CN21: 0.7 | CO21: -0.6 | CP21: 0.9 | CQ21: 1.4 | CR21: 1.1 | CS21: 1.4 | CT21: 1 | CU21: 1.1 | CV21: 1.2 | CW21: 1.5 | CX21: 1.6 | CY21: 1.6 | CZ21: 1.6 | DA21: 1.3 | DB21: 1.3 | DC21: 1.2 | DD21: 0.9 | DE21: 1.2 | DF21: 1.4 | DG21: 1.8 | DH21: 2.2 | DI21: 2.2 | DJ21: 2.1 | DK21: 1.6 | DL21: 1.7 | DM21: 1.3 | DN21: 1 | DO21: 1.6 | DP21: 0.6 | DQ21: 0.8 | DR21: 1.1 | DS21: 0.8 | DT21: 1 | DU21: 0.5 | DV21: 0.9 | DW21: 0.6 | DX21: 0.6 | DY21: 0.6 | DZ21: 0.8 | EA21: 1.3 | EB21: 0.8 | EC21: 1.8 | ED21: 1.2 | EE21: 0.5 | EF21: -0.1 | EG21: -0.7 | EH21: -0.4 | EI21: -0.6 | EJ21: -0.4 | EK21: -0.3 | EL21: -0.2 | EM21: 0 | EN21: -0.3 | EO21: 0 | EP21: 0 | EQ21: 0.7 | ER21: 1.6 | ES21: 2.1 | ET21: 2.4 | EU21: 2.2 | EV21: 2.7 | EW21: 3.1 | EX21: 3.5 | EY21: 3.9 | EZ21: 4.7 | FA21: 5.2 | FB21: 2.7 | FC21: 5.5 | FD21: 6.3 | FE21: 7.3 | FF21: 9.6 | FG21: 10.7 | FH21: 12.1 | FI21: 12.7 | FJ21: 12.6 | FK21: 12.6 | FL21: 12.7 | FM21: 13 | FN21: 12.7 | FO21: 10.7 | FP21: 12.5 | FQ21: 11.7 | FR21: 10.5 | FS21: 8.9 | FT21: 8.3 | FU21: 8.3 | FV21: 8 | FW21: 8.4 | FX21: 7.4 | FY21: 6.7 | FZ21: 5.5 | GA21: 5.4 | GB21: 8.4 | GC21: 4.8 | GD21: 4.8 | GE21: 4.9 | GF21: 4.7 | GG21: 4.3 | GH21: 3.5 | GI21: 3.3 | GJ21: 3 | GK21: 3.1
A22: ITA | B22: Italien | C22: 1.3 | D22: 1.1 | E22: 1.4 | F22: 1.6 | G22: 1.6 | H22: 1.5 | I22: 1.8 | J22: 1.8 | K22: 1.6 | L22: 2 | M22: 1.9 | N22: 2.1 | O22: 1.6 | P22: 1.9 | Q22: 2.1 | R22: 2.8 | S22: 2.9 | T22: 3 | U22: 3 | V22: 2.1 | W22: 2.3 | X22: 3.6 | Y22: 3.8 | Z22: 3.7 | AA22: 3.7 | AB22: 2.9 | AC22: 3.4 | AD22: 3.4 | AE22: 3.8 | AF22: 3.7 | AG22: 3.5 | AH22: 3.6 | AI22: 3.6 | AJ22: 3.3 | AK22: 3.4 | AL22: 2.8 | AM22: 2.6 | AN22: 2.6 | AO22: 3.3 | AP22: 2.4 | AQ22: 2 | AR22: 1.8 | AS22: 1.3 | AT22: 1.3 | AU22: 1.4 | AV22: 1.2 | AW22: 1.2 | AX22: 0.9 | AY22: 0.8 | AZ22: 0.7 | BA22: 0.7 | BB22: 1.3 | BC22: 0.6 | BD22: 0.4 | BE22: 0.3 | BF22: 0.5 | BG22: 0.4 | BH22: 0.2 | BI22: 0 | BJ22: -0.2 | BK22: -0.1 | BL22: 0.2 | BM22: 0.3 | BN22: -0.1 | BO22: 0.2 | BP22: -0.5 | BQ22: 0.1 | BR22: 0 | BS22: -0.1 | BT22: 0.2 | BU22: 0.2 | BV22: 0.3 | BW22: 0.4 | BX22: 0.2 | BY22: 0.3 | BZ22: 0.2 | CA22: 0.1 | CB22: 0.1 | CC22: 0.4 | CD22: -0.2 | CE22: -0.2 | CF22: -0.4 | CG22: -0.3 | CH22: -0.2 | CI22: -0.2 | CJ22: -0.1 | CK22: 0.1 | CL22: -0.1 | CM22: 0.1 | CN22: 0.5 | CO22: -0.1 | CP22: 1 | CQ22: 1.6 | CR22: 1.4 | CS22: 2 | CT22: 1.6 | CU22: 1.2 | CV22: 1.2 | CW22: 1.4 | CX22: 1.3 | CY22: 1.1 | CZ22: 1.1 | DA22: 1 | DB22: 1.3 | DC22: 1.2 | DD22: 0.5 | DE22: 0.9 | DF22: 0.6 | DG22: 1 | DH22: 1.4 | DI22: 1.9 | DJ22: 1.6 | DK22: 1.5 | DL22: 1.7 | DM22: 1.6 | DN22: 1.2 | DO22: 1.2 | DP22: 0.9 | DQ22: 1.1 | DR22: 1.1 | DS22: 1.1 | DT22: 0.9 | DU22: 0.8 | DV22: 0.3 | DW22: 0.5 | DX22: 0.2 | DY22: 0.2 | DZ22: 0.2 | EA22: 0.5 | EB22: 0.6 | EC22: 0.4 | ED22: 0.2 | EE22: 0.1 | EF22: 0.1 | EG22: -0.3 | EH22: -0.4 | EI22: 0.8 | EJ22: -0.5 | EK22: -1 | EL22: -0.6 | EM22: -0.3 | EN22: -0.3 | EO22: -0.1 | EP22: 0.7 | EQ22: 1 | ER22: 0.6 | ES22: 1 | ET22: 1.2 | EU22: 1.3 | EV22: 1 | EW22: 2.5 | EX22: 2.9 | EY22: 3.2 | EZ22: 3.9 | FA22: 4.2 | FB22: 1.9 | FC22: 5.1 | FD22: 6.2 | FE22: 6.8 | FF22: 6.3 | FG22: 7.3 | FH22: 8.5 | FI22: 8.4 | FJ22: 9.1 | FK22: 9.4 | FL22: 12.6 | FM22: 12.6 | FN22: 12.3 | FO22: 8.7 | FP22: 10.7 | FQ22: 9.8 | FR22: 8.1 | FS22: 8.6 | FT22: 8 | FU22: 6.7 | FV22: 6.3 | FW22: 5.5 | FX22: 5.6 | FY22: 1.8 | FZ22: 0.6 | GA22: 0.5 | GB22: 5.9 | GC22: 0.9 | GD22: 0.8 | GE22: 1.2 | GF22: 0.9 | GG22: 0.8 | GH22: 0.9 | GI22: 1.6 | GJ22: 1.2 | GK22: 0.7
A23: CYP | B23: Zypern | C23: 2.5 | D23: 2.8 | E23: 2.3 | F23: 2.5 | G23: 1.8 | H23: 2.1 | I23: 2.7 | J23: 3.4 | K23: 3.6 | L23: 3.2 | M23: 1.7 | N23: 1.9 | O23: 2.6 | P23: 3 | Q23: 3.1 | R23: 3.2 | S23: 3.5 | T23: 4.1 | U23: 4.5 | V23: 3.5 | W23: 2.7 | X23: 2.5 | Y23: 3.2 | Z23: 4 | AA23: 4.2 | AB23: 3.5 | AC23: 3.1 | AD23: 3.1 | AE23: 3.5 | AF23: 3.6 | AG23: 3.7 | AH23: 2.9 | AI23: 3.8 | AJ23: 4.5 | AK23: 3.6 | AL23: 2.6 | AM23: 1.4 | AN23: 1.5 | AO23: 3.1 | AP23: 2 | AQ23: 1.8 | AR23: 1.3 | AS23: 0.1 | AT23: 0.2 | AU23: 0.8 | AV23: 0.7 | AW23: 0.1 | AX23: 0.3 | AY23: -0.5 | AZ23: -0.8 | BA23: -1.3 | BB23: 0.4 | BC23: -1.6 | BD23: -1.3 | BE23: -0.9 | BF23: -0.4 | BG23: -0.1 | BH23: 0 | BI23: 0.9 | BJ23: 0.8 | BK23: 0 | BL23: 0.3 | BM23: 0 | BN23: -1 | BO23: -0.3 | BP23: -0.7 | BQ23: -0.8 | BR23: -1.4 | BS23: -1.7 | BT23: -1.7 | BU23: -2.1 | BV23: -2.4 | BW23: -1.9 | BX23: -1.9 | BY23: -1.8 | BZ23: -1.5 | CA23: -0.6 | CB23: -1.5 | CC23: -1.1 | CD23: -2.2 | CE23: -2.2 | CF23: -2.1 | CG23: -1.9 | CH23: -2 | CI23: -0.4 | CJ23: -0.6 | CK23: -0.4 | CL23: -1 | CM23: -0.8 | CN23: 0.1 | CO23: -1.2 | CP23: 0.7 | CQ23: 1.4 | CR23: 1.5 | CS23: 2.1 | CT23: 0.9 | CU23: 0.9 | CV23: -0.1 | CW23: 0.5 | CX23: 0.1 | CY23: 0.4 | CZ23: 0.2 | DA23: -0.4 | DB23: 0.7 | DC23: -1.5 | DD23: -0.4 | DE23: -0.4 | DF23: -0.3 | DG23: 1 | DH23: 1.7 | DI23: 1.4 | DJ23: 1.7 | DK23: 1.7 | DL23: 1.9 | DM23: 1.6 | DN23: 1 | DO23: 0.8 | DP23: 2.1 | DQ23: 0.8 | DR23: 1.1 | DS23: 1.2 | DT23: 0.2 | DU23: 0.3 | DV23: 0.1 | DW23: 0.6 | DX23: -0.5 | DY23: -0.5 | DZ23: 0.5 | EA23: 0.7 | EB23: 0.5 | EC23: 0.7 | ED23: 1 | EE23: 0.1 | EF23: -1.2 | EG23: -1.4 | EH23: -2.2 | EI23: -2 | EJ23: -2.9 | EK23: -1.9 | EL23: -1.4 | EM23: -1.1 | EN23: -0.8 | EO23: -1.1 | EP23: -0.8 | EQ23: -0.9 | ER23: 0.3 | ES23: 1.2 | ET23: 1.5 | EU23: 2.2 | EV23: 2.7 | EW23: 3.3 | EX23: 3.6 | EY23: 4.4 | EZ23: 4.7 | FA23: 4.8 | FB23: 2.3 | FC23: 5 | FD23: 5.8 | FE23: 6.2 | FF23: 8.6 | FG23: 8.8 | FH23: 9 | FI23: 10.6 | FJ23: 9.6 | FK23: 9 | FL23: 8.6 | FM23: 8.1 | FN23: 7.6 | FO23: 8.1 | FP23: 6.8 | FQ23: 6.7 | FR23: 6.1 | FS23: 3.9 | FT23: 3.6 | FU23: 2.8 | FV23: 2.4 | FW23: 3.1 | FX23: 4.3 | FY23: 3.6 | FZ23: 2.4 | GA23: 1.9 | GB23: 3.9 | GC23: 2.1 | GD23: 2.1 | GE23: 1.6 | GF23: 2.1 | GG23: 3 | GH23: 3 | GI23: 2.4 | GJ23: 2.2 | GK23: 1.6
A24: LVA | B24: Lettland | C24: -3.3 | D24: -4.3 | E24: -4 | F24: -2.8 | G24: -2.4 | H24: -1.6 | I24: -0.7 | J24: -0.4 | K24: 0.3 | L24: 0.9 | M24: 1.7 | N24: 2.4 | O24: -1.2 | P24: 3.5 | Q24: 3.8 | R24: 4.1 | S24: 4.3 | T24: 4.8 | U24: 4.7 | V24: 4.2 | W24: 4.6 | X24: 4.5 | Y24: 4.3 | Z24: 4 | AA24: 3.9 | AB24: 4.2 | AC24: 3.4 | AD24: 3.3 | AE24: 3.2 | AF24: 2.8 | AG24: 2.3 | AH24: 2.1 | AI24: 1.9 | AJ24: 1.9 | AK24: 1.9 | AL24: 1.6 | AM24: 1.5 | AN24: 1.6 | AO24: 2.3 | AP24: 0.6 | AQ24: 0.3 | AR24: 0.3 | AS24: -0.4 | AT24: -0.2 | AU24: 0.2 | AV24: 0.5 | AW24: -0.1 | AX24: -0.4 | AY24: 0 | AZ24: -0.3 | BA24: -0.4 | BB24: 0 | BC24: 0.5 | BD24: 0.5 | BE24: 0.3 | BF24: 0.8 | BG24: 0.8 | BH24: 0.8 | BI24: 0.6 | BJ24: 0.8 | BK24: 1.2 | BL24: 0.7 | BM24: 0.9 | BN24: 0.3 | BO24: 0.7 | BP24: -0.3 | BQ24: 0 | BR24: 0.5 | BS24: 0.6 | BT24: 1.2 | BU24: 0.7 | BV24: -0.2 | BW24: 0.2 | BX24: -0.4 | BY24: -0.1 | BZ24: 0 | CA24: 0.4 | CB24: 0.2 | CC24: -0.3 | CD24: -0.6 | CE24: -0.6 | CF24: -0.7 | CG24: -0.8 | CH24: -0.6 | CI24: 0.1 | CJ24: -0.1 | CK24: 0.5 | CL24: 1.1 | CM24: 1.2 | CN24: 2.1 | CO24: 0.1 | CP24: 2.9 | CQ24: 3.2 | CR24: 3.3 | CS24: 3.3 | CT24: 2.7 | CU24: 3.1 | CV24: 2.6 | CW24: 3.2 | CX24: 3 | CY24: 2.7 | CZ24: 2.7 | DA24: 2.2 | DB24: 2.9 | DC24: 2 | DD24: 1.8 | DE24: 2.3 | DF24: 2.1 | DG24: 2.4 | DH24: 2.7 | DI24: 2.7 | DJ24: 2.8 | DK24: 3.3 | DL24: 3.2 | DM24: 2.9 | DN24: 2.5 | DO24: 2.6 | DP24: 2.9 | DQ24: 2.8 | DR24: 2.7 | DS24: 3.3 | DT24: 3.5 | DU24: 3.1 | DV24: 3 | DW24: 3.1 | DX24: 2.3 | DY24: 2.2 | DZ24: 2 | EA24: 2.1 | EB24: 2.7 | EC24: 2.2 | ED24: 2.3 | EE24: 1.4 | EF24: -0.1 | EG24: -0.9 | EH24: -1.1 | EI24: 0.1 | EJ24: -0.5 | EK24: -0.4 | EL24: -0.7 | EM24: -0.7 | EN24: -0.5 | EO24: 0.1 | EP24: -0.5 | EQ24: -0.2 | ER24: 0.3 | ES24: 1.7 | ET24: 2.6 | EU24: 2.7 | EV24: 2.8 | EW24: 3.6 | EX24: 4.7 | EY24: 6 | EZ24: 7.4 | FA24: 7.9 | FB24: 3.2 | FC24: 7.5 | FD24: 8.8 | FE24: 11.5 | FF24: 13.1 | FG24: 16.8 | FH24: 19.2 | FI24: 21.3 | FJ24: 21.4 | FK24: 22 | FL24: 21.7 | FM24: 21.7 | FN24: 20.7 | FO24: 17.2 | FP24: 21.4 | FQ24: 20.1 | FR24: 17.2 | FS24: 15 | FT24: 12.3 | FU24: 8.1 | FV24: 6.6 | FW24: 5.6 | FX24: 3.6 | FY24: 2.3 | FZ24: 1.1 | GA24: 0.9 | GB24: 9.1 | GC24: 1.1 | GD24: 0.6 | GE24: 1 | GF24: 1.1 | GG24: 0 | GH24: 1.5 | GI24: 0.8 | GJ24: 0.9 | GK24: 1.6
A25: LTU | B25: Litauen | C25: -0.3 | D25: -0.6 | E25: -0.4 | F25: 0.2 | G25: 0.5 | H25: 0.9 | I25: 1.7 | J25: 1.8 | K25: 1.8 | L25: 2.6 | M25: 2.5 | N25: 3.6 | O25: 1.2 | P25: 2.8 | Q25: 3 | R25: 3.7 | S25: 4.4 | T25: 5 | U25: 4.8 | V25: 4.6 | W25: 4.4 | X25: 4.7 | Y25: 4.2 | Z25: 4.4 | AA25: 3.5 | AB25: 4.1 | AC25: 3.4 | AD25: 3.7 | AE25: 3.7 | AF25: 3.3 | AG25: 2.6 | AH25: 2.6 | AI25: 2.9 | AJ25: 3.4 | AK25: 3.3 | AL25: 3.2 | AM25: 2.8 | AN25: 2.9 | AO25: 3.2 | AP25: 2.7 | AQ25: 2.3 | AR25: 1.6 | AS25: 1.4 | AT25: 1.5 | AU25: 1.3 | AV25: 0.6 | AW25: 0.5 | AX25: 0.5 | AY25: 0.5 | AZ25: 0.5 | BA25: 0.4 | BB25: 1.2 | BC25: 0.2 | BD25: 0.3 | BE25: 0.4 | BF25: 0.3 | BG25: 0.1 | BH25: 0.3 | BI25: 0.5 | BJ25: 0.3 | BK25: 0 | BL25: 0.3 | BM25: 0.4 | BN25: -0.1 | BO25: 0.2 | BP25: -1.4 | BQ25: -1.5 | BR25: -1.1 | BS25: -0.6 | BT25: -0.1 | BU25: -0.2 | BV25: -0.2 | BW25: -1 | BX25: -0.8 | BY25: -0.4 | BZ25: -0.5 | CA25: -0.2 | CB25: -0.7 | CC25: 0.7 | CD25: 0.5 | CE25: 0.8 | CF25: 0.8 | CG25: 0.2 | CH25: 0.4 | CI25: 0 | CJ25: 0.5 | CK25: 0.6 | CL25: 0.7 | CM25: 1.1 | CN25: 2 | CO25: 0.7 | CP25: 2.5 | CQ25: 3.2 | CR25: 3.2 | CS25: 3.5 | CT25: 3.2 | CU25: 3.5 | CV25: 4.1 | CW25: 4.6 | CX25: 4.6 | CY25: 4.2 | CZ25: 4.2 | DA25: 3.8 | DB25: 3.7 | DC25: 3.6 | DD25: 3.2 | DE25: 2.5 | DF25: 2.2 | DG25: 2.9 | DH25: 2.6 | DI25: 2.3 | DJ25: 1.8 | DK25: 2.4 | DL25: 2.8 | DM25: 2.4 | DN25: 1.8 | DO25: 2.5 | DP25: 1.6 | DQ25: 2 | DR25: 2.6 | DS25: 2.7 | DT25: 2.5 | DU25: 2.4 | DV25: 2.5 | DW25: 2.5 | DX25: 2 | DY25: 1.5 | DZ25: 1.7 | EA25: 2.7 | EB25: 2.2 | EC25: 3 | ED25: 2.8 | EE25: 1.7 | EF25: 0.9 | EG25: 0.2 | EH25: 0.9 | EI25: 0.9 | EJ25: 1.2 | EK25: 0.6 | EL25: 0.5 | EM25: 0.4 | EN25: -0.1 | EO25: 1.1 | EP25: 0.2 | EQ25: 0.4 | ER25: 1.6 | ES25: 2.4 | ET25: 3.5 | EU25: 3.5 | EV25: 4.3 | EW25: 5 | EX25: 6.4 | EY25: 8.2 | EZ25: 9.3 | FA25: 10.7 | FB25: 4.6 | FC25: 12.3 | FD25: 14 | FE25: 15.6 | FF25: 16.6 | FG25: 18.5 | FH25: 20.5 | FI25: 20.9 | FJ25: 21.1 | FK25: 22.5 | FL25: 22.1 | FM25: 21.4 | FN25: 20 | FO25: 18.9 | FP25: 18.5 | FQ25: 17.2 | FR25: 15.2 | FS25: 13.3 | FT25: 10.7 | FU25: 8.2 | FV25: 7.2 | FW25: 6.4 | FX25: 4.1 | FY25: 3.1 | FZ25: 2.3 | GA25: 1.6 | GB25: 8.7 | GC25: 1.1 | GD25: 1.1 | GE25: 0.4 | GF25: 0.4 | GG25: 0.9 | GH25: 1 | GI25: 1.1 | GJ25: 0.8 | GK25: 0.4
A26: LUX | B26: Luxemburg | C26: 3 | D26: 2.3 | E26: 3.2 | F26: 3.1 | G26: 3.1 | H26: 2.3 | I26: 2.9 | J26: 2.5 | K26: 2.6 | L26: 2.9 | M26: 2.5 | N26: 3.1 | O26: 2.8 | P26: 3.4 | Q26: 3.9 | R26: 4 | S26: 4 | T26: 3.8 | U26: 3.8 | V26: 3.2 | W26: 3.7 | X26: 3.8 | Y26: 3.8 | Z26: 4 | AA26: 3.4 | AB26: 3.7 | AC26: 3.2 | AD26: 3.3 | AE26: 2.9 | AF26: 3 | AG26: 2.7 | AH26: 2.6 | AI26: 2.7 | AJ26: 2.8 | AK26: 3.2 | AL26: 3.2 | AM26: 2.7 | AN26: 2.5 | AO26: 2.9 | AP26: 2.1 | AQ26: 2.4 | AR26: 2 | AS26: 1.7 | AT26: 1.4 | AU26: 2 | AV26: 1.8 | AW26: 1.7 | AX26: 1.5 | AY26: 1 | AZ26: 1.1 | BA26: 1.5 | BB26: 1.7 | BC26: 1.5 | BD26: 0.8 | BE26: 0.8 | BF26: 0.9 | BG26: 1.4 | BH26: 1.2 | BI26: 1.2 | BJ26: 0.7 | BK26: 0.3 | BL26: 0.4 | BM26: 0.2 | BN26: -0.9 | BO26: 0.7 | BP26: -1.1 | BQ26: -0.3 | BR26: 0.1 | BS26: 0 | BT26: 0.4 | BU26: 0.5 | BV26: 0.2 | BW26: 0.1 | BX26: -0.2 | BY26: -0.1 | BZ26: 0.4 | CA26: 0.9 | CB26: 0.1 | CC26: 0.5 | CD26: -0.3 | CE26: -0.6 | CF26: -0.6 | CG26: -0.6 | CH26: -0.4 | CI26: -0.4 | CJ26: -0.2 | CK26: 0.3 | CL26: 0.7 | CM26: 0.6 | CN26: 1.6 | CO26: 0 | CP26: 2.5 | CQ26: 2.7 | CR26: 2.5 | CS26: 2.6 | CT26: 1.9 | CU26: 1.5 | CV26: 1.8 | CW26: 2.3 | CX26: 2 | CY26: 2 | CZ26: 2 | DA26: 1.6 | DB26: 2.1 | DC26: 1.3 | DD26: 1.1 | DE26: 1.1 | DF26: 1.3 | DG26: 2.1 | DH26: 2.4 | DI26: 2.5 | DJ26: 2.4 | DK26: 2.7 | DL26: 2.8 | DM26: 2.6 | DN26: 1.9 | DO26: 2 | DP26: 1.6 | DQ26: 2.1 | DR26: 2.4 | DS26: 2.2 | DT26: 2.2 | DU26: 1.5 | DV26: 1.6 | DW26: 1.4 | DX26: 1.1 | DY26: 0.8 | DZ26: 1 | EA26: 1.8 | EB26: 1.6 | EC26: 2.5 | ED26: 1.8 | EE26: 0.3 | EF26: -0.8 | EG26: -1.6 | EH26: -0.4 | EI26: 0.1 | EJ26: -0.2 | EK26: -0.3 | EL26: -0.4 | EM26: -0.7 | EN26: -0.3 | EO26: 0 | EP26: 1.1 | EQ26: -0.5 | ER26: 2.5 | ES26: 3.3 | ET26: 4 | EU26: 3.4 | EV26: 3.3 | EW26: 3.5 | EX26: 4 | EY26: 5.3 | EZ26: 6.3 | FA26: 5.4 | FB26: 3.5 | FC26: 4.6 | FD26: 7.8 | FE26: 7.9 | FF26: 9 | FG26: 9.1 | FH26: 10.3 | FI26: 9.3 | FJ26: 8.6 | FK26: 8.8 | FL26: 8.8 | FM26: 7.3 | FN26: 6.2 | FO26: 8.2 | FP26: 5.8 | FQ26: 4.8 | FR26: 2.9 | FS26: 2.7 | FT26: 2 | FU26: 1 | FV26: 2 | FW26: 3.5 | FX26: 3.4 | FY26: 2.1 | FZ26: 2.1 | GA26: 3.2 | GB26: 2.9 | GC26: 3 | GD26: 3.2 | GE26: 3.2 | GF26: 3 | GG26: 3.2 | GH26: 2.8 | GI26: 2.7 | GJ26: 1.7 | GK26: 0.8
A27: HUN | B27: Ungarn | C27: 6.2 | D27: 5.6 | E27: 5.7 | F27: 5.7 | G27: 4.9 | H27: 5 | I27: 3.6 | J27: 3.6 | K27: 3.7 | L27: 4.3 | M27: 4 | N27: 4.6 | O27: 4.7 | P27: 4 | Q27: 4.2 | R27: 4.6 | S27: 4.4 | T27: 3.9 | U27: 3.5 | V27: 3.1 | W27: 3.5 | X27: 3.7 | Y27: 3.8 | Z27: 4.3 | AA27: 4.1 | AB27: 3.9 | AC27: 5.6 | AD27: 5.8 | AE27: 5.5 | AF27: 5.6 | AG27: 5.4 | AH27: 5.6 | AI27: 5.7 | AJ27: 6 | AK27: 6.4 | AL27: 6 | AM27: 5.3 | AN27: 5.1 | AO27: 5.7 | AP27: 2.8 | AQ27: 2.9 | AR27: 2.3 | AS27: 1.8 | AT27: 1.8 | AU27: 2 | AV27: 1.7 | AW27: 1.6 | AX27: 1.6 | AY27: 1.1 | AZ27: 0.4 | BA27: 0.6 | BB27: 1.7 | BC27: 0.8 | BD27: 0.3 | BE27: 0.2 | BF27: -0.2 | BG27: 0 | BH27: -0.1 | BI27: 0.5 | BJ27: 0.3 | BK27: -0.5 | BL27: -0.3 | BM27: 0.1 | BN27: -0.8 | BO27: 0 | BP27: -1.4 | BQ27: -1 | BR27: -0.5 | BS27: 0 | BT27: 0.6 | BU27: 0.7 | BV27: 0.5 | BW27: 0.1 | BX27: -0.1 | BY27: 0.2 | BZ27: 0.6 | CA27: 1 | CB27: 0.1 | CC27: 1 | CD27: 0.3 | CE27: -0.2 | CF27: 0.3 | CG27: -0.1 | CH27: -0.1 | CI27: -0.3 | CJ27: -0.1 | CK27: 0.7 | CL27: 1.1 | CM27: 1.1 | CN27: 1.8 | CO27: 0.4 | CP27: 2.4 | CQ27: 2.9 | CR27: 2.7 | CS27: 2.3 | CT27: 2.1 | CU27: 2 | CV27: 2.2 | CW27: 2.7 | CX27: 2.5 | CY27: 2.2 | CZ27: 2.6 | DA27: 2.2 | DB27: 2.4 | DC27: 2.1 | DD27: 1.9 | DE27: 2 | DF27: 2.4 | DG27: 2.9 | DH27: 3.2 | DI27: 3.4 | DJ27: 3.4 | DK27: 3.7 | DL27: 3.9 | DM27: 3.2 | DN27: 2.8 | DO27: 2.9 | DP27: 2.8 | DQ27: 3.2 | DR27: 3.8 | DS27: 3.9 | DT27: 4 | DU27: 3.4 | DV27: 3.3 | DW27: 3.2 | DX27: 2.9 | DY27: 3 | DZ27: 3.4 | EA27: 4.1 | EB27: 3.4 | EC27: 4.7 | ED27: 4.4 | EE27: 3.9 | EF27: 2.5 | EG27: 2.2 | EH27: 2.9 | EI27: 3.9 | EJ27: 4 | EK27: 3.4 | EL27: 3 | EM27: 2.8 | EN27: 2.8 | EO27: 3.4 | EP27: 2.9 | EQ27: 3.3 | ER27: 3.9 | ES27: 5.2 | ET27: 5.3 | EU27: 5.3 | EV27: 4.7 | EW27: 4.9 | EX27: 5.5 | EY27: 6.6 | EZ27: 7.5 | FA27: 7.4 | FB27: 5.2 | FC27: 7.9 | FD27: 8.4 | FE27: 8.6 | FF27: 9.6 | FG27: 10.8 | FH27: 12.6 | FI27: 14.7 | FJ27: 18.6 | FK27: 20.7 | FL27: 21.9 | FM27: 23.1 | FN27: 25 | FO27: 15.3 | FP27: 26.2 | FQ27: 25.8 | FR27: 25.6 | FS27: 24.4 | FT27: 21.9 | FU27: 19.9 | FV27: 17.5 | FW27: 14.2 | FX27: 12.2 | FY27: 9.6 | FZ27: 7.7 | GA27: 5.5 | GB27: 17 | GC27: 3.7 | GD27: 3.6 | GE27: 3.6 | GF27: 3.6 | GG27: 3.9 | GH27: 3.6 | GI27: 4.1 | GJ27: 3.4 | GK27: 3
A28: MAL | B28: Malta | C28: 1.2 | D28: 0.7 | E28: 0.6 | F28: 0.8 | G28: 1.8 | H28: 1.8 | I28: 2.5 | J28: 3 | K28: 2.4 | L28: 2.2 | M28: 3.4 | N28: 4 | O28: 2 | P28: 3.3 | Q28: 2.7 | R28: 2.8 | S28: 2.4 | T28: 2.5 | U28: 3.1 | V28: 2.4 | W28: 2.5 | X28: 2.8 | Y28: 2.5 | Z28: 1.7 | AA28: 1.5 | AB28: 2.5 | AC28: 1.7 | AD28: 2.6 | AE28: 2.6 | AF28: 3.8 | AG28: 3.7 | AH28: 4.4 | AI28: 4.2 | AJ28: 3.2 | AK28: 2.9 | AL28: 3.2 | AM28: 3.6 | AN28: 2.8 | AO28: 3.2 | AP28: 2.4 | AQ28: 1.8 | AR28: 1.4 | AS28: 0.9 | AT28: 0.8 | AU28: 0.6 | AV28: 0.9 | AW28: 0.7 | AX28: 0.6 | AY28: 0.5 | AZ28: 0.3 | BA28: 1 | BB28: 1 | BC28: 0.9 | BD28: 1.6 | BE28: 1.4 | BF28: 0.5 | BG28: 0.4 | BH28: 0.7 | BI28: 0.6 | BJ28: 0.8 | BK28: 0.6 | BL28: 0.7 | BM28: 0.6 | BN28: 0.4 | BO28: 0.8 | BP28: 0.8 | BQ28: 0.6 | BR28: 0.5 | BS28: 1.4 | BT28: 1.3 | BU28: 1.1 | BV28: 1.2 | BW28: 1.4 | BX28: 1.6 | BY28: 1.6 | BZ28: 1.3 | CA28: 1.3 | CB28: 1.2 | CC28: 0.8 | CD28: 1 | CE28: 1 | CF28: 0.8 | CG28: 1 | CH28: 1 | CI28: 0.9 | CJ28: 1 | CK28: 0.9 | CL28: 0.5 | CM28: 0.8 | CN28: 1 | CO28: 0.9 | CP28: 1.4 | CQ28: 1.2 | CR28: 1.2 | CS28: 1.1 | CT28: 1.1 | CU28: 1 | CV28: 1.2 | CW28: 1.2 | CX28: 1.2 | CY28: 1.5 | CZ28: 1.5 | DA28: 1.3 | DB28: 1.3 | DC28: 1.2 | DD28: 1.3 | DE28: 1.3 | DF28: 1.4 | DG28: 1.7 | DH28: 2 | DI28: 2.1 | DJ28: 2.4 | DK28: 2.5 | DL28: 2.1 | DM28: 1.4 | DN28: 1.2 | DO28: 1.7 | DP28: 1 | DQ28: 1.3 | DR28: 1.3 | DS28: 1.7 | DT28: 1.7 | DU28: 1.8 | DV28: 1.8 | DW28: 1.9 | DX28: 1.6 | DY28: 1.4 | DZ28: 1.3 | EA28: 1.3 | EB28: 1.5 | EC28: 1.4 | ED28: 1.1 | EE28: 1.2 | EF28: 1.1 | EG28: 0.9 | EH28: 1 | EI28: 0.7 | EJ28: 0.7 | EK28: 0.5 | EL28: 0.6 | EM28: 0.2 | EN28: 0.2 | EO28: 0.8 | EP28: 0.2 | EQ28: 0.1 | ER28: 0.1 | ES28: 0.1 | ET28: 0.2 | EU28: 0.2 | EV28: 0.3 | EW28: 0.4 | EX28: 0.7 | EY28: 1.4 | EZ28: 2.4 | FA28: 2.6 | FB28: 0.7 | FC28: 4.1 | FD28: 4.2 | FE28: 4.5 | FF28: 5.4 | FG28: 5.8 | FH28: 6.1 | FI28: 6.8 | FJ28: 7 | FK28: 7.4 | FL28: 7.4 | FM28: 7.2 | FN28: 7.3 | FO28: 6.1 | FP28: 6.8 | FQ28: 7 | FR28: 7.1 | FS28: 6.4 | FT28: 6.3 | FU28: 6.2 | FV28: 5.6 | FW28: 5 | FX28: 4.9 | FY28: 4.2 | FZ28: 3.9 | GA28: 3.7 | GB28: 5.6 | GC28: 3.7 | GD28: 3 | GE28: 2.7 | GF28: 2.4 | GG28: 2.3 | GH28: 2.2 | GI28: 2.3 | GJ28: 2.4 | GK28: 2.1
A29: NLD | B29: Niederlande | C29: 0.4 | D29: 0.3 | E29: 0.7 | F29: 0.6 | G29: 0.4 | H29: 0.2 | I29: 1.3 | J29: 1.2 | K29: 1.4 | L29: 1.4 | M29: 1.4 | N29: 1.8 | O29: 0.9 | P29: 1.9 | Q29: 2 | R29: 1.9 | S29: 2.1 | T29: 2.3 | U29: 2.3 | V29: 3.2 | W29: 3.2 | X29: 3 | Y29: 2.8 | Z29: 2.6 | AA29: 2.5 | AB29: 2.5 | AC29: 2.9 | AD29: 2.9 | AE29: 2.9 | AF29: 2.8 | AG29: 2.5 | AH29: 2.5 | AI29: 2.6 | AJ29: 2.5 | AK29: 2.5 | AL29: 3.3 | AM29: 3.2 | AN29: 3.4 | AO29: 2.8 | AP29: 3.2 | AQ29: 3.2 | AR29: 3.2 | AS29: 2.8 | AT29: 3.1 | AU29: 3.2 | AV29: 3.1 | AW29: 2.8 | AX29: 2.4 | AY29: 1.3 | AZ29: 1.2 | BA29: 1.4 | BB29: 2.6 | BC29: 0.8 | BD29: 0.4 | BE29: 0.1 | BF29: 0.6 | BG29: 0.1 | BH29: 0.3 | BI29: 0.3 | BJ29: 0.4 | BK29: 0.2 | BL29: 0.4 | BM29: 0.3 | BN29: -0.1 | BO29: 0.3 | BP29: -0.7 | BQ29: -0.5 | BR29: -0.3 | BS29: 0 | BT29: 0.7 | BU29: 0.5 | BV29: 0.8 | BW29: 0.4 | BX29: 0.3 | BY29: 0.4 | BZ29: 0.4 | CA29: 0.5 | CB29: 0.2 | CC29: 0.2 | CD29: 0.3 | CE29: 0.5 | CF29: -0.2 | CG29: -0.2 | CH29: -0.2 | CI29: -0.6 | CJ29: 0.1 | CK29: -0.1 | CL29: 0.3 | CM29: 0.4 | CN29: 0.7 | CO29: 0.1 | CP29: 1.6 | CQ29: 1.7 | CR29: 0.6 | CS29: 1.4 | CT29: 0.7 | CU29: 1 | CV29: 1.5 | CW29: 1.5 | CX29: 1.4 | CY29: 1.3 | CZ29: 1.5 | DA29: 1.2 | DB29: 1.3 | DC29: 1.5 | DD29: 1.3 | DE29: 1 | DF29: 1 | DG29: 1.9 | DH29: 1.7 | DI29: 1.9 | DJ29: 1.9 | DK29: 1.6 | DL29: 1.9 | DM29: 1.8 | DN29: 1.8 | DO29: 1.6 | DP29: 2 | DQ29: 2.6 | DR29: 2.9 | DS29: 3 | DT29: 2.3 | DU29: 2.7 | DV29: 2.6 | DW29: 3.1 | DX29: 2.7 | DY29: 2.8 | DZ29: 2.6 | EA29: 2.8 | EB29: 2.7 | EC29: 1.7 | ED29: 1.3 | EE29: 1.1 | EF29: 1 | EG29: 1.1 | EH29: 1.7 | EI29: 1.6 | EJ29: 0.3 | EK29: 1 | EL29: 1.2 | EM29: 0.7 | EN29: 0.9 | EO29: 1.1 | EP29: 1.6 | EQ29: 1.9 | ER29: 1.9 | ES29: 1.7 | ET29: 2 | EU29: 1.7 | EV29: 1.4 | EW29: 2.7 | EX29: 3 | EY29: 3.7 | EZ29: 5.9 | FA29: 6.4 | FB29: 2.8 | FC29: 7.6 | FD29: 7.3 | FE29: 11.7 | FF29: 11.2 | FG29: 10.2 | FH29: 9.9 | FI29: 11.6 | FJ29: 13.7 | FK29: 17.1 | FL29: 16.8 | FM29: 11.3 | FN29: 11 | FO29: 11.6 | FP29: 8.4 | FQ29: 8.9 | FR29: 4.5 | FS29: 5.8 | FT29: 6.8 | FU29: 6.4 | FV29: 5.3 | FW29: 3.4 | FX29: -0.3 | FY29: -1 | FZ29: 1.4 | GA29: 1 | GB29: 4.1 | GC29: 3.1 | GD29: 2.7 | GE29: 3.1 | GF29: 2.6 | GG29: 2.7 | GH29: 3.4 | GI29: 3.5 | GJ29: 3.3 | GK29: 3.3
A30: AUT | B30: Österreich | C30: 1.2 | D30: 0.9 | E30: 1.8 | F30: 1.8 | G30: 1.7 | H30: 1.8 | I30: 1.7 | J30: 1.6 | K30: 1.7 | L30: 2 | M30: 1.8 | N30: 2.2 | O30: 1.7 | P30: 2.5 | Q30: 3.1 | R30: 3.3 | S30: 3.7 | T30: 3.7 | U30: 3.7 | V30: 3.8 | W30: 3.7 | X30: 3.9 | Y30: 3.8 | Z30: 3.9 | AA30: 3.4 | AB30: 3.6 | AC30: 2.9 | AD30: 2.6 | AE30: 2.6 | AF30: 2.3 | AG30: 2.2 | AH30: 2.2 | AI30: 2.1 | AJ30: 2.3 | AK30: 2.8 | AL30: 2.9 | AM30: 2.9 | AN30: 2.9 | AO30: 2.6 | AP30: 2.8 | AQ30: 2.6 | AR30: 2.4 | AS30: 2.1 | AT30: 2.4 | AU30: 2.2 | AV30: 2.1 | AW30: 2 | AX30: 1.8 | AY30: 1.5 | AZ30: 1.5 | BA30: 2 | BB30: 2.1 | BC30: 1.5 | BD30: 1.5 | BE30: 1.4 | BF30: 1.6 | BG30: 1.5 | BH30: 1.7 | BI30: 1.7 | BJ30: 1.5 | BK30: 1.4 | BL30: 1.4 | BM30: 1.5 | BN30: 0.8 | BO30: 1.5 | BP30: 0.5 | BQ30: 0.5 | BR30: 0.9 | BS30: 0.9 | BT30: 1 | BU30: 1 | BV30: 1.1 | BW30: 0.9 | BX30: 0.6 | BY30: 0.7 | BZ30: 0.5 | CA30: 1.1 | CB30: 0.8 | CC30: 1.4 | CD30: 1 | CE30: 0.7 | CF30: 0.6 | CG30: 0.6 | CH30: 0.6 | CI30: 0.6 | CJ30: 0.6 | CK30: 1.1 | CL30: 1.4 | CM30: 1.5 | CN30: 1.6 | CO30: 1 | CP30: 2.1 | CQ30: 2.4 | CR30: 2.1 | CS30: 2.3 | CT30: 2.1 | CU30: 2 | CV30: 2 | CW30: 2.1 | CX30: 2.5 | CY30: 2.4 | CZ30: 2.4 | DA30: 2.3 | DB30: 2.2 | DC30: 1.9 | DD30: 1.9 | DE30: 2 | DF30: 2 | DG30: 2.1 | DH30: 2.3 | DI30: 2.3 | DJ30: 2.3 | DK30: 2.1 | DL30: 2.4 | DM30: 2.3 | DN30: 1.7 | DO30: 2.1 | DP30: 1.7 | DQ30: 1.4 | DR30: 1.7 | DS30: 1.7 | DT30: 1.7 | DU30: 1.6 | DV30: 1.4 | DW30: 1.5 | DX30: 1.2 | DY30: 1 | DZ30: 1.2 | EA30: 1.8 | EB30: 1.5 | EC30: 2.2 | ED30: 2.2 | EE30: 1.6 | EF30: 1.5 | EG30: 0.6 | EH30: 1.1 | EI30: 1.8 | EJ30: 1.4 | EK30: 1.2 | EL30: 1.1 | EM30: 1.1 | EN30: 1 | EO30: 1.4 | EP30: 1.1 | EQ30: 1.4 | ER30: 2 | ES30: 1.9 | ET30: 3 | EU30: 2.8 | EV30: 2.8 | EW30: 3.2 | EX30: 3.3 | EY30: 3.8 | EZ30: 4.1 | FA30: 3.8 | FB30: 2.8 | FC30: 4.5 | FD30: 5.5 | FE30: 6.6 | FF30: 7.1 | FG30: 7.7 | FH30: 8.7 | FI30: 9.4 | FJ30: 9.3 | FK30: 11 | FL30: 11.6 | FM30: 11.2 | FN30: 10.5 | FO30: 8.6 | FP30: 11.6 | FQ30: 11 | FR30: 9.2 | FS30: 9.4 | FT30: 8.7 | FU30: 7.8 | FV30: 7 | FW30: 7.5 | FX30: 5.8 | FY30: 4.9 | FZ30: 4.9 | GA30: 5.7 | GB30: 7.7 | GC30: 4.3 | GD30: 4 | GE30: 4.1 | GF30: 3.4 | GG30: 3.3 | GH30: 3.1 | GI30: 2.9 | GJ30: 2.4 | GK30: 1.8
A31: POL | B31: Polen | C31: 3.9 | D31: 3.4 | E31: 2.9 | F31: 2.7 | G31: 2.3 | H31: 2.4 | I31: 1.9 | J31: 1.9 | K31: 2.5 | L31: 2.6 | M31: 2.6 | N31: 2.9 | O31: 2.7 | P31: 3.5 | Q31: 3.3 | R31: 4 | S31: 4.1 | T31: 4.3 | U31: 3.7 | V31: 3.6 | W31: 4 | X31: 3.5 | Y31: 3.8 | Z31: 4.4 | AA31: 4.5 | AB31: 3.9 | AC31: 4.1 | AD31: 4.4 | AE31: 3.9 | AF31: 4 | AG31: 3.6 | AH31: 4.2 | AI31: 4 | AJ31: 3.8 | AK31: 3.8 | AL31: 3.4 | AM31: 2.7 | AN31: 2.2 | AO31: 3.7 | AP31: 1.6 | AQ31: 1.2 | AR31: 1 | AS31: 0.8 | AT31: 0.5 | AU31: 0.2 | AV31: 0.9 | AW31: 0.9 | AX31: 0.9 | AY31: 0.7 | AZ31: 0.5 | BA31: 0.6 | BB31: 0.8 | BC31: 0.6 | BD31: 0.7 | BE31: 0.6 | BF31: 0.3 | BG31: 0.3 | BH31: 0.3 | BI31: 0 | BJ31: -0.1 | BK31: -0.2 | BL31: -0.3 | BM31: -0.3 | BN31: -0.6 | BO31: 0.1 | BP31: -1 | BQ31: -1.3 | BR31: -1.2 | BS31: -0.9 | BT31: -0.6 | BU31: -0.6 | BV31: -0.5 | BW31: -0.4 | BX31: -0.6 | BY31: -0.6 | BZ31: -0.5 | CA31: -0.4 | CB31: -0.7 | CC31: -0.3 | CD31: -0.2 | CE31: -0.4 | CF31: -0.5 | CG31: -0.4 | CH31: -0.4 | CI31: -0.6 | CJ31: -0.5 | CK31: -0.2 | CL31: 0.1 | CM31: 0.2 | CN31: 0.9 | CO31: -0.2 | CP31: 1.4 | CQ31: 1.9 | CR31: 1.8 | CS31: 1.8 | CT31: 1.5 | CU31: 1.3 | CV31: 1.4 | CW31: 1.4 | CX31: 1.6 | CY31: 1.6 | CZ31: 2 | DA31: 1.7 | DB31: 1.6 | DC31: 1.6 | DD31: 0.7 | DE31: 0.7 | DF31: 0.9 | DG31: 1.2 | DH31: 1.4 | DI31: 1.4 | DJ31: 1.4 | DK31: 1.5 | DL31: 1.5 | DM31: 1.1 | DN31: 0.9 | DO31: 1.2 | DP31: 0.6 | DQ31: 1.3 | DR31: 1.7 | DS31: 2.1 | DT31: 2.2 | DU31: 2.3 | DV31: 2.5 | DW31: 2.6 | DX31: 2.4 | DY31: 2.3 | DZ31: 2.4 | EA31: 3 | EB31: 2.1 | EC31: 3.8 | ED31: 4.1 | EE31: 3.9 | EF31: 2.9 | EG31: 3.4 | EH31: 3.8 | EI31: 3.7 | EJ31: 3.7 | EK31: 3.8 | EL31: 3.8 | EM31: 3.7 | EN31: 3.4 | EO31: 3.7 | EP31: 3.6 | EQ31: 3.6 | ER31: 4.4 | ES31: 5.1 | ET31: 4.6 | EU31: 4.1 | EV31: 4.7 | EW31: 5 | EX31: 5.6 | EY31: 6.4 | EZ31: 7.4 | FA31: 8 | FB31: 5.2 | FC31: 8.7 | FD31: 8.1 | FE31: 10.2 | FF31: 11.4 | FG31: 12.8 | FH31: 14.2 | FI31: 14.2 | FJ31: 14.8 | FK31: 15.7 | FL31: 16.4 | FM31: 16.1 | FN31: 15.3 | FO31: 13.2 | FP31: 15.9 | FQ31: 17.2 | FR31: 15.2 | FS31: 14 | FT31: 12.5 | FU31: 11 | FV31: 10.3 | FW31: 9.5 | FX31: 7.7 | FY31: 6.3 | FZ31: 6.3 | GA31: 6.2 | GB31: 10.9 | GC31: 4.5 | GD31: 3.7 | GE31: 2.7 | GF31: 3 | GG31: 2.8 | GH31: 2.9 | GI31: 4 | GJ31: 4 | GK31: 4.2
A32: PRT | B32: Portugal | C32: 0.1 | D32: 0.2 | E32: 0.6 | F32: 0.7 | G32: 1.1 | H32: 1.1 | I32: 1.9 | J32: 2 | K32: 2 | L32: 2.3 | M32: 2.2 | N32: 2.4 | O32: 1.4 | P32: 3.6 | Q32: 3.5 | R32: 3.9 | S32: 4 | T32: 3.7 | U32: 3.3 | V32: 3 | W32: 2.8 | X32: 3.5 | Y32: 4 | Z32: 3.8 | AA32: 3.5 | AB32: 3.6 | AC32: 3.4 | AD32: 3.6 | AE32: 3.1 | AF32: 2.9 | AG32: 2.7 | AH32: 2.7 | AI32: 2.8 | AJ32: 3.2 | AK32: 2.9 | AL32: 2.1 | AM32: 1.9 | AN32: 2.1 | AO32: 2.8 | AP32: 0.4 | AQ32: 0.2 | AR32: 0.7 | AS32: 0.4 | AT32: 0.9 | AU32: 1.2 | AV32: 0.8 | AW32: 0.2 | AX32: 0.3 | AY32: 0 | AZ32: 0.1 | BA32: 0.2 | BB32: 0.4 | BC32: 0.1 | BD32: -0.1 | BE32: -0.4 | BF32: -0.1 | BG32: -0.3 | BH32: -0.2 | BI32: -0.7 | BJ32: -0.1 | BK32: 0 | BL32: 0.1 | BM32: 0.1 | BN32: -0.3 | BO32: -0.2 | BP32: -0.4 | BQ32: -0.1 | BR32: 0.4 | BS32: 0.5 | BT32: 1 | BU32: 0.8 | BV32: 0.7 | BW32: 0.7 | BX32: 0.9 | BY32: 0.7 | BZ32: 0.6 | CA32: 0.3 | CB32: 0.5 | CC32: 0.7 | CD32: 0.2 | CE32: 0.5 | CF32: 0.5 | CG32: 0.4 | CH32: 0.7 | CI32: 0.7 | CJ32: 0.8 | CK32: 0.7 | CL32: 1.1 | CM32: 0.5 | CN32: 0.9 | CO32: 0.6 | CP32: 1.3 | CQ32: 1.6 | CR32: 1.4 | CS32: 2.4 | CT32: 1.7 | CU32: 1 | CV32: 1 | CW32: 1.3 | CX32: 1.6 | CY32: 1.9 | CZ32: 1.8 | DA32: 1.6 | DB32: 1.6 | DC32: 1.1 | DD32: 0.7 | DE32: 0.8 | DF32: 0.3 | DG32: 1.4 | DH32: 2 | DI32: 2.2 | DJ32: 1.3 | DK32: 1.8 | DL32: 0.8 | DM32: 0.9 | DN32: 0.6 | DO32: 1.2 | DP32: 0.6 | DQ32: 0.9 | DR32: 0.8 | DS32: 0.9 | DT32: 0.3 | DU32: 0.7 | DV32: -0.7 | DW32: -0.1 | DX32: -0.3 | DY32: -0.1 | DZ32: 0.2 | EA32: 0.4 | EB32: 0.3 | EC32: 0.8 | ED32: 0.5 | EE32: 0.1 | EF32: -0.1 | EG32: -0.6 | EH32: 0.2 | EI32: -0.1 | EJ32: -0.2 | EK32: -0.8 | EL32: -0.6 | EM32: -0.4 | EN32: -0.3 | EO32: -0.1 | EP32: 0.2 | EQ32: 0.3 | ER32: 0.1 | ES32: -0.1 | ET32: 0.5 | EU32: -0.6 | EV32: 1.1 | EW32: 1.3 | EX32: 1.3 | EY32: 1.8 | EZ32: 2.6 | FA32: 2.8 | FB32: 0.9 | FC32: 3.4 | FD32: 4.4 | FE32: 5.5 | FF32: 7.4 | FG32: 8.1 | FH32: 9 | FI32: 9.4 | FJ32: 9.3 | FK32: 9.8 | FL32: 10.6 | FM32: 10.2 | FN32: 9.8 | FO32: 8.1 | FP32: 8.6 | FQ32: 8.6 | FR32: 8 | FS32: 6.9 | FT32: 5.4 | FU32: 4.7 | FV32: 4.3 | FW32: 5.3 | FX32: 4.8 | FY32: 3.2 | FZ32: 2.2 | GA32: 1.9 | GB32: 5.3 | GC32: 2.5 | GD32: 2.3 | GE32: 2.6 | GF32: 2.3 | GG32: 3.8 | GH32: 3.1 | GI32: 2.7 | GJ32: 1.8 | GK32: 2.6
A33: ROM | B33: Rumänien | C33: 5.2 | D33: 4.5 | E33: 4.2 | F33: 4.2 | G33: 4.4 | H33: 4.3 | I33: 7.1 | J33: 7.6 | K33: 7.7 | L33: 7.9 | M33: 7.7 | N33: 7.9 | O33: 6.1 | P33: 7 | Q33: 7.6 | R33: 8 | S33: 8.4 | T33: 8.5 | U33: 8 | V33: 4.9 | W33: 4.3 | X33: 3.5 | Y33: 3.6 | Z33: 3.5 | AA33: 3.2 | AB33: 5.8 | AC33: 2.8 | AD33: 2.7 | AE33: 2.5 | AF33: 1.9 | AG33: 2 | AH33: 2.2 | AI33: 3.1 | AJ33: 4 | AK33: 5.4 | AL33: 5 | AM33: 4.4 | AN33: 4.6 | AO33: 3.4 | AP33: 5.1 | AQ33: 4.8 | AR33: 4.4 | AS33: 4.4 | AT33: 4.4 | AU33: 4.5 | AV33: 3.4 | AW33: 2.6 | AX33: 1.1 | AY33: 1.2 | AZ33: 1.3 | BA33: 1.3 | BB33: 3.2 | BC33: 1.2 | BD33: 1.3 | BE33: 1.3 | BF33: 1.6 | BG33: 1.3 | BH33: 0.9 | BI33: 1.5 | BJ33: 1.3 | BK33: 1.8 | BL33: 1.8 | BM33: 1.5 | BN33: 1 | BO33: 1.4 | BP33: 0.5 | BQ33: 0.4 | BR33: 0.8 | BS33: 0.6 | BT33: 1.3 | BU33: -0.9 | BV33: -1.4 | BW33: -1.7 | BX33: -1.5 | BY33: -1.4 | BZ33: -0.9 | CA33: -0.7 | CB33: -0.4 | CC33: -1.5 | CD33: -2.1 | CE33: -2.4 | CF33: -2.6 | CG33: -3 | CH33: -0.7 | CI33: -0.3 | CJ33: 0.3 | CK33: -0.1 | CL33: 0.1 | CM33: -0.2 | CN33: -0.1 | CO33: -1.1 | CP33: 0.3 | CQ33: 0.5 | CR33: 0.4 | CS33: 0.6 | CT33: 0.5 | CU33: 0.7 | CV33: 0.9 | CW33: 0.6 | CX33: 1.3 | CY33: 2 | CZ33: 2.6 | DA33: 2.6 | DB33: 1.1 | DC33: 3.4 | DD33: 3.8 | DE33: 4 | DF33: 4.3 | DG33: 4.6 | DH33: 4.7 | DI33: 4.3 | DJ33: 4.7 | DK33: 4.7 | DL33: 4.2 | DM33: 3.2 | DN33: 3 | DO33: 4.1 | DP33: 3.2 | DQ33: 4 | DR33: 4.2 | DS33: 4.4 | DT33: 4.4 | DU33: 3.9 | DV33: 4.1 | DW33: 4.1 | DX33: 3.5 | DY33: 3.2 | DZ33: 3.8 | EA33: 4 | EB33: 3.9 | EC33: 3.9 | ED33: 2.9 | EE33: 2.7 | EF33: 2.3 | EG33: 1.8 | EH33: 2.2 | EI33: 2.5 | EJ33: 2.5 | EK33: 2.1 | EL33: 1.8 | EM33: 1.7 | EN33: 1.8 | EO33: 2.3 | EP33: 2 | EQ33: 2.5 | ER33: 2.5 | ES33: 2.7 | ET33: 3.2 | EU33: 3.5 | EV33: 3.8 | EW33: 4 | EX33: 5.2 | EY33: 6.5 | EZ33: 6.7 | FA33: 6.7 | FB33: 4.1 | FC33: 7.2 | FD33: 7.9 | FE33: 9.6 | FF33: 11.7 | FG33: 12.4 | FH33: 13 | FI33: 13 | FJ33: 13.3 | FK33: 13.4 | FL33: 13.5 | FM33: 14.6 | FN33: 14.1 | FO33: 12 | FP33: 13.4 | FQ33: 13.4 | FR33: 12.2 | FS33: 10.4 | FT33: 9.6 | FU33: 9.3 | FV33: 8.9 | FW33: 9.3 | FX33: 9.2 | FY33: 8.3 | FZ33: 6.9 | GA33: 7 | GB33: 9.7 | GC33: 7.3 | GD33: 7.1 | GE33: 6.7 | GF33: 6.2 | GG33: 5.8 | GH33: 5.3 | GI33: 5.8 | GJ33: 5.3 | GK33: 4.8
A34: SVN | B34: Slowenien | C34: 1.8 | D34: 1.6 | E34: 1.8 | F34: 2.7 | G34: 2.4 | H34: 2.1 | I34: 2.3 | J34: 2.4 | K34: 2.1 | L34: 2.1 | M34: 1.6 | N34: 2.2 | O34: 2.1 | P34: 2.3 | Q34: 2 | R34: 2.4 | S34: 2 | T34: 2.4 | U34: 1.6 | V34: 1.1 | W34: 1.2 | X34: 2.3 | Y34: 2.9 | Z34: 2.8 | AA34: 2.1 | AB34: 2.1 | AC34: 2.3 | AD34: 2.8 | AE34: 2.4 | AF34: 2.9 | AG34: 2.4 | AH34: 2.4 | AI34: 2.6 | AJ34: 3.1 | AK34: 3.7 | AL34: 3.2 | AM34: 2.8 | AN34: 3.1 | AO34: 2.8 | AP34: 2.8 | AQ34: 2.9 | AR34: 2.2 | AS34: 1.6 | AT34: 1.6 | AU34: 2.2 | AV34: 2.8 | AW34: 2.2 | AX34: 1.5 | AY34: 1.1 | AZ34: 1.2 | BA34: 0.9 | BB34: 1.9 | BC34: 0.9 | BD34: 0.2 | BE34: 0.6 | BF34: 0.5 | BG34: 1 | BH34: 1 | BI34: 0.3 | BJ34: 0 | BK34: -0.1 | BL34: 0.1 | BM34: 0.1 | BN34: -0.1 | BO34: 0.4 | BP34: -0.7 | BQ34: -0.5 | BR34: -0.4 | BS34: -0.7 | BT34: -0.8 | BU34: -0.9 | BV34: -0.7 | BW34: -0.6 | BX34: -1 | BY34: -1.1 | BZ34: -0.9 | CA34: -0.6 | CB34: -0.8 | CC34: -0.8 | CD34: -0.9 | CE34: -0.9 | CF34: -0.7 | CG34: -0.5 | CH34: 0.1 | CI34: -0.1 | CJ34: -0.2 | CK34: 0.2 | CL34: 0.7 | CM34: 0.7 | CN34: 0.6 | CO34: -0.2 | CP34: 1.5 | CQ34: 2.5 | CR34: 2 | CS34: 1.7 | CT34: 1.5 | CU34: 0.9 | CV34: 1.2 | CW34: 1.4 | CX34: 1.4 | CY34: 1.3 | CZ34: 1.4 | DA34: 1.9 | DB34: 1.6 | DC34: 1.7 | DD34: 1.4 | DE34: 1.5 | DF34: 1.9 | DG34: 2.2 | DH34: 2.3 | DI34: 2.1 | DJ34: 2 | DK34: 2.2 | DL34: 2.3 | DM34: 2.1 | DN34: 1.4 | DO34: 1.9 | DP34: 1.2 | DQ34: 1.3 | DR34: 1.6 | DS34: 1.8 | DT34: 1.6 | DU34: 1.9 | DV34: 2 | DW34: 2.4 | DX34: 1.7 | DY34: 1.5 | DZ34: 1.4 | EA34: 2 | EB34: 1.7 | EC34: 2.3 | ED34: 2 | EE34: 0.7 | EF34: -1.3 | EG34: -1.4 | EH34: -0.8 | EI34: -0.3 | EJ34: -0.7 | EK34: -0.7 | EL34: -0.5 | EM34: -1.1 | EN34: -1.2 | EO34: -0.3 | EP34: -0.9 | EQ34: -1.1 | ER34: 0.1 | ES34: 2.2 | ET34: 2.2 | EU34: 1.7 | EV34: 2 | EW34: 2.1 | EX34: 2.7 | EY34: 3.5 | EZ34: 4.9 | FA34: 5.1 | FB34: 2 | FC34: 6 | FD34: 7 | FE34: 6 | FF34: 7.4 | FG34: 8.7 | FH34: 10.8 | FI34: 11.7 | FJ34: 11.5 | FK34: 10.6 | FL34: 10.3 | FM34: 10.8 | FN34: 10.8 | FO34: 9.3 | FP34: 9.9 | FQ34: 9.4 | FR34: 10.4 | FS34: 9.2 | FT34: 8.1 | FU34: 6.6 | FV34: 5.7 | FW34: 6.1 | FX34: 7.1 | FY34: 6.6 | FZ34: 4.5 | GA34: 3.8 | GB34: 7.2 | GC34: 3.4 | GD34: 3.4 | GE34: 3.4 | GF34: 3 | GG34: 2.5 | GH34: 1.6 | GI34: 1.4 | GJ34: 1.1 | GK34: 0.7
A35: SVK | B35: Slowakei | C35: -0.2 | D35: -0.2 | E35: 0.3 | F35: 0.7 | G35: 0.7 | H35: 0.7 | I35: 1 | J35: 1.1 | K35: 1.1 | L35: 1 | M35: 1 | N35: 1.3 | O35: 0.7 | P35: 3.2 | Q35: 3.5 | R35: 3.8 | S35: 3.9 | T35: 4.2 | U35: 4.1 | V35: 3.8 | W35: 4.1 | X35: 4.4 | Y35: 4.6 | Z35: 4.8 | AA35: 4.6 | AB35: 4.1 | AC35: 4.1 | AD35: 4 | AE35: 3.9 | AF35: 3.7 | AG35: 3.4 | AH35: 3.7 | AI35: 3.8 | AJ35: 3.8 | AK35: 3.8 | AL35: 3.9 | AM35: 3.5 | AN35: 3.4 | AO35: 3.7 | AP35: 2.5 | AQ35: 2.2 | AR35: 1.9 | AS35: 1.7 | AT35: 1.8 | AU35: 1.7 | AV35: 1.6 | AW35: 1.4 | AX35: 1.1 | AY35: 0.7 | AZ35: 0.5 | BA35: 0.4 | BB35: 1.5 | BC35: 0 | BD35: -0.1 | BE35: -0.2 | BF35: -0.2 | BG35: 0 | BH35: -0.1 | BI35: -0.2 | BJ35: -0.2 | BK35: -0.1 | BL35: 0 | BM35: 0 | BN35: -0.1 | BO35: -0.1 | BP35: -0.5 | BQ35: -0.6 | BR35: -0.4 | BS35: -0.1 | BT35: -0.1 | BU35: -0.1 | BV35: -0.2 | BW35: -0.2 | BX35: -0.5 | BY35: -0.5 | BZ35: -0.4 | CA35: -0.5 | CB35: -0.3 | CC35: -0.6 | CD35: -0.3 | CE35: -0.5 | CF35: -0.4 | CG35: -0.7 | CH35: -0.7 | CI35: -0.9 | CJ35: -0.8 | CK35: -0.5 | CL35: -0.3 | CM35: -0.2 | CN35: 0.2 | CO35: -0.5 | CP35: 0.8 | CQ35: 1.2 | CR35: 1 | CS35: 0.8 | CT35: 1.1 | CU35: 1 | CV35: 1.5 | CW35: 1.6 | CX35: 1.8 | CY35: 1.8 | CZ35: 2.1 | DA35: 2 | DB35: 1.4 | DC35: 2.6 | DD35: 2.2 | DE35: 2.5 | DF35: 3 | DG35: 2.7 | DH35: 2.9 | DI35: 2.6 | DJ35: 2.9 | DK35: 2.7 | DL35: 2.5 | DM35: 2 | DN35: 1.9 | DO35: 2.5 | DP35: 2.2 | DQ35: 2.3 | DR35: 2.7 | DS35: 2.4 | DT35: 2.7 | DU35: 2.7 | DV35: 3 | DW35: 3 | DX35: 3 | DY35: 2.9 | DZ35: 3.2 | EA35: 3.2 | EB35: 2.8 | EC35: 3.2 | ED35: 3.1 | EE35: 2.4 | EF35: 2.1 | EG35: 2.1 | EH35: 1.8 | EI35: 1.8 | EJ35: 1.4 | EK35: 1.4 | EL35: 1.6 | EM35: 1.6 | EN35: 1.6 | EO35: 2 | EP35: 0.7 | EQ35: 0.9 | ER35: 1.5 | ES35: 1.7 | ET35: 2 | EU35: 2.5 | EV35: 2.9 | EW35: 3.3 | EX35: 4 | EY35: 4.4 | EZ35: 4.8 | FA35: 5.1 | FB35: 2.8 | FC35: 7.7 | FD35: 8.3 | FE35: 9.6 | FF35: 10.9 | FG35: 11.8 | FH35: 12.6 | FI35: 12.8 | FJ35: 13.4 | FK35: 13.6 | FL35: 14.5 | FM35: 15.1 | FN35: 15 | FO35: 12.1 | FP35: 15.1 | FQ35: 15.4 | FR35: 14.8 | FS35: 14 | FT35: 12.3 | FU35: 11.3 | FV35: 10.3 | FW35: 9.6 | FX35: 9 | FY35: 7.8 | FZ35: 6.9 | GA35: 6.6 | GB35: 11 | GC35: 4.4 | GD35: 3.8 | GE35: 2.7 | GF35: 2.4 | GG35: 2.6 | GH35: 2.4 | GI35: 3 | GJ35: 3.2 | GK35: 2.9
A36: FIN | B36: Finnland | C36: 1.6 | D36: 1.3 | E36: 1.5 | F36: 1.6 | G36: 1.4 | H36: 1.3 | I36: 1.3 | J36: 1.3 | K36: 1.4 | L36: 2.3 | M36: 2.4 | N36: 2.8 | O36: 1.7 | P36: 3.1 | Q36: 3.5 | R36: 3.5 | S36: 3.4 | T36: 3.4 | U36: 3.4 | V36: 3.7 | W36: 3.5 | X36: 3.5 | Y36: 3.2 | Z36: 3.2 | AA36: 2.6 | AB36: 3.3 | AC36: 3 | AD36: 3 | AE36: 2.9 | AF36: 3 | AG36: 3.1 | AH36: 2.9 | AI36: 3.1 | AJ36: 3.3 | AK36: 3.4 | AL36: 3.5 | AM36: 3.2 | AN36: 3.5 | AO36: 3.2 | AP36: 2.6 | AQ36: 2.5 | AR36: 2.5 | AS36: 2.4 | AT36: 2.5 | AU36: 2.3 | AV36: 2.5 | AW36: 2 | AX36: 1.8 | AY36: 1.7 | AZ36: 1.8 | BA36: 1.9 | BB36: 2.2 | BC36: 1.9 | BD36: 1.6 | BE36: 1.3 | BF36: 1.3 | BG36: 1 | BH36: 1.1 | BI36: 1 | BJ36: 1.2 | BK36: 1.5 | BL36: 1.2 | BM36: 1.1 | BN36: 0.6 | BO36: 1.2 | BP36: -0.1 | BQ36: -0.1 | BR36: 0 | BS36: -0.1 | BT36: 0.1 | BU36: 0.1 | BV36: -0.1 | BW36: -0.2 | BX36: -0.7 | BY36: -0.3 | BZ36: -0.2 | CA36: -0.2 | CB36: -0.2 | CC36: 0 | CD36: -0.1 | CE36: 0 | CF36: 0.3 | CG36: 0.3 | CH36: 0.3 | CI36: 0.5 | CJ36: 0.5 | CK36: 0.5 | CL36: 0.6 | CM36: 0.6 | CN36: 1.1 | CO36: 0.4 | CP36: 0.9 | CQ36: 1.4 | CR36: 0.9 | CS36: 1 | CT36: 0.9 | CU36: 0.9 | CV36: 0.6 | CW36: 0.8 | CX36: 0.8 | CY36: 0.5 | CZ36: 0.9 | DA36: 0.5 | DB36: 0.8 | DC36: 0.8 | DD36: 0.6 | DE36: 0.9 | DF36: 0.8 | DG36: 1 | DH36: 1.2 | DI36: 1.4 | DJ36: 1.4 | DK36: 1.4 | DL36: 1.7 | DM36: 1.4 | DN36: 1.3 | DO36: 1.2 | DP36: 1.2 | DQ36: 1.3 | DR36: 1.1 | DS36: 1.5 | DT36: 1.3 | DU36: 1.1 | DV36: 1 | DW36: 1.2 | DX36: 1 | DY36: 0.9 | DZ36: 0.8 | EA36: 1.1 | EB36: 1.1 | EC36: 1.2 | ED36: 1.1 | EE36: 0.9 | EF36: -0.3 | EG36: -0.1 | EH36: 0.1 | EI36: 0.7 | EJ36: 0.3 | EK36: 0.3 | EL36: 0.2 | EM36: 0.2 | EN36: 0.2 | EO36: 0.4 | EP36: 1 | EQ36: 0.9 | ER36: 1.4 | ES36: 2.2 | ET36: 2.3 | EU36: 1.9 | EV36: 1.8 | EW36: 1.8 | EX36: 2.1 | EY36: 2.8 | EZ36: 3.5 | FA36: 3.2 | FB36: 2.1 | FC36: 4.1 | FD36: 4.4 | FE36: 5.8 | FF36: 5.8 | FG36: 7.1 | FH36: 8.1 | FI36: 8 | FJ36: 7.9 | FK36: 8.4 | FL36: 8.4 | FM36: 9.1 | FN36: 8.8 | FO36: 7.2 | FP36: 7.9 | FQ36: 8 | FR36: 6.7 | FS36: 6.3 | FT36: 5 | FU36: 4.1 | FV36: 4.2 | FW36: 3.1 | FX36: 3 | FY36: 2.4 | FZ36: 0.7 | GA36: 1.3 | GB36: 4.3 | GC36: 1.1 | GD36: 1.1 | GE36: 0.6 | GF36: 0.6 | GG36: 0.4 | GH36: 0.5 | GI36: 0.5 | GJ36: 1.1 | GK36: 1
A37: SWE | B37: Schweden | C37: 2.7 | D37: 2.8 | E37: 2.5 | F37: 2.1 | G37: 1.9 | H37: 1.6 | I37: 1.4 | J37: 1.1 | K37: 1.5 | L37: 1.6 | M37: 1.7 | N37: 2.1 | O37: 1.9 | P37: 1.4 | Q37: 1.2 | R37: 1.4 | S37: 1.8 | T37: 1.7 | U37: 1.5 | V37: 1.6 | W37: 1.6 | X37: 1.5 | Y37: 1.1 | Z37: 1.1 | AA37: 0.4 | AB37: 1.4 | AC37: 0.7 | AD37: 1 | AE37: 1.1 | AF37: 1 | AG37: 0.9 | AH37: 0.9 | AI37: 0.7 | AJ37: 0.9 | AK37: 1 | AL37: 1.2 | AM37: 0.8 | AN37: 1 | AO37: 0.9 | AP37: 0.7 | AQ37: 0.5 | AR37: 0.5 | AS37: 0 | AT37: 0.3 | AU37: 0.5 | AV37: 0.8 | AW37: 0.8 | AX37: 0.5 | AY37: 0.2 | AZ37: 0.3 | BA37: 0.4 | BB37: 0.4 | BC37: 0.2 | BD37: 0.1 | BE37: -0.4 | BF37: 0.3 | BG37: 0.1 | BH37: 0.5 | BI37: 0.4 | BJ37: 0.2 | BK37: 0 | BL37: 0.3 | BM37: 0.3 | BN37: 0.3 | BO37: 0.2 | BP37: 0.4 | BQ37: 0.7 | BR37: 0.7 | BS37: 0.5 | BT37: 0.9 | BU37: 0.4 | BV37: 0.8 | BW37: 0.6 | BX37: 0.9 | BY37: 0.9 | BZ37: 0.8 | CA37: 0.7 | CB37: 0.7 | CC37: 1.3 | CD37: 0.8 | CE37: 1.2 | CF37: 1 | CG37: 0.8 | CH37: 1.2 | CI37: 1.1 | CJ37: 1.2 | CK37: 0.8 | CL37: 1.1 | CM37: 1.3 | CN37: 1.7 | CO37: 1.1 | CP37: 1.5 | CQ37: 1.9 | CR37: 1.4 | CS37: 2 | CT37: 1.8 | CU37: 1.8 | CV37: 2.3 | CW37: 2.2 | CX37: 2.2 | CY37: 1.7 | CZ37: 1.9 | DA37: 1.7 | DB37: 1.9 | DC37: 1.6 | DD37: 1.6 | DE37: 2 | DF37: 1.8 | DG37: 2 | DH37: 2.1 | DI37: 2.2 | DJ37: 2.1 | DK37: 2.5 | DL37: 2.4 | DM37: 2.1 | DN37: 2.2 | DO37: 2 | DP37: 2 | DQ37: 1.9 | DR37: 1.8 | DS37: 2.1 | DT37: 2.1 | DU37: 1.6 | DV37: 1.5 | DW37: 1.3 | DX37: 1.3 | DY37: 1.6 | DZ37: 1.8 | EA37: 1.7 | EB37: 1.7 | EC37: 1.5 | ED37: 1.3 | EE37: 0.8 | EF37: -0.2 | EG37: 0.1 | EH37: 0.9 | EI37: 0.7 | EJ37: 1 | EK37: 0.6 | EL37: 0.4 | EM37: 0.2 | EN37: 0.6 | EO37: 0.7 | EP37: 1.9 | EQ37: 1.8 | ER37: 2.1 | ES37: 2.8 | ET37: 2.4 | EU37: 1.8 | EV37: 1.8 | EW37: 2.5 | EX37: 3 | EY37: 3.3 | EZ37: 3.9 | FA37: 4.5 | FB37: 2.7 | FC37: 3.9 | FD37: 4.4 | FE37: 6.3 | FF37: 6.6 | FG37: 7.5 | FH37: 8.9 | FI37: 8.3 | FJ37: 9.5 | FK37: 10.3 | FL37: 9.8 | FM37: 10.1 | FN37: 10.8 | FO37: 8.1 | FP37: 9.6 | FQ37: 9.7 | FR37: 8.1 | FS37: 7.7 | FT37: 6.7 | FU37: 6.3 | FV37: 6.3 | FW37: 4.5 | FX37: 3.7 | FY37: 4 | FZ37: 3.3 | GA37: 1.9 | GB37: 5.9 | GC37: 3.4 | GD37: 2.6 | GE37: 2.3 | GF37: 2.4 | GG37: 2.5 | GH37: 1.4 | GI37: 1.7 | GJ37: 1.3 | GK37: 1.2
A38: ISL | B38: Island | C38: 10.6 | D38: 10.7 | E38: 11.6 | F38: 11.1 | G38: 10 | H38: 7.6 | I38: 6.2 | J38: 5.9 | K38: 5.1 | L38: 4.6 | M38: 3.8 | N38: 3.5 | O38: 7.5 | P38: 2.2 | Q38: 2.3 | R38: 2.3 | S38: 3.1 | T38: 4.3 | U38: 4.8 | V38: 5.2 | W38: 5 | X38: 5.6 | Y38: 5.3 | Z38: 5.1 | AA38: 5.3 | AB38: 4.2 | AC38: 6.2 | AD38: 6.7 | AE38: 7.8 | AF38: 7.2 | AG38: 6 | AH38: 6.9 | AI38: 5.4 | AJ38: 4.5 | AK38: 5.3 | AL38: 5.1 | AM38: 6 | AN38: 5.1 | AO38: 6 | AP38: 6.1 | AQ38: 6.2 | AR38: 4.5 | AS38: 4 | AT38: 3.3 | AU38: 3.1 | AV38: 4.2 | AW38: 4.8 | AX38: 3.8 | AY38: 3.2 | AZ38: 3 | BA38: 3.7 | BB38: 4.1 | BC38: 1.5 | BD38: 0.8 | BE38: 0.9 | BF38: 1.3 | BG38: 1.1 | BH38: 1.3 | BI38: 2.3 | BJ38: 2.3 | BK38: 0.4 | BL38: 1 | BM38: -0.6 | BN38: -0.4 | BO38: 1 | BP38: -0.1 | BQ38: -0.8 | BR38: -0.1 | BS38: -0.3 | BT38: 0.3 | BU38: 0 | BV38: 0.5 | BW38: 1.1 | BX38: 0.9 | BY38: 0.4 | BZ38: 0.5 | CA38: 0.7 | CB38: 0.3 | CC38: 1.1 | CD38: 0.9 | CE38: 0.3 | CF38: 0.4 | CG38: 1.5 | CH38: 1.6 | CI38: 1.1 | CJ38: 0.7 | CK38: 1.1 | CL38: 0.3 | CM38: 0.6 | CN38: -0.1 | CO38: 0.8 | CP38: -0.6 | CQ38: -0.2 | CR38: -1.4 | CS38: -0.8 | CT38: -2.5 | CU38: -2.6 | CV38: -1.9 | CW38: -2.6 | CX38: -2.7 | CY38: -1.2 | CZ38: -2.2 | DA38: -1 | DB38: -1.7 | DC38: -0.7 | DD38: -1 | DE38: 0.3 | DF38: -0.7 | DG38: 0 | DH38: 1.4 | DI38: 1.9 | DJ38: 2.1 | DK38: 1.2 | DL38: 0.9 | DM38: 1.5 | DN38: 2 | DO38: 0.7 | DP38: 1.8 | DQ38: 1 | DR38: 1.3 | DS38: 3.2 | DT38: 2.9 | DU38: 2.2 | DV38: 1.6 | DW38: 1.7 | DX38: 2.8 | DY38: 1.9 | DZ38: 2.1 | EA38: 0.9 | EB38: 2 | EC38: 0.7 | ED38: 2.7 | EE38: 1 | EF38: -0.1 | EG38: 0.9 | EH38: 0.3 | EI38: -0.1 | EJ38: 0.9 | EK38: 1.4 | EL38: 1.7 | EM38: 2.6 | EN38: 2.4 | EO38: 1.2 | EP38: 3.4 | EQ38: 2.8 | ER38: 3.8 | ES38: 3.5 | ET38: 3.3 | EU38: 4 | EV38: 3.7 | EW38: 3.7 | EX38: 3.8 | EY38: 4.2 | EZ38: 3.9 | FA38: 3.9 | FB38: 3.7 | FC38: 4.3 | FD38: 4.4 | FE38: 5 | FF38: 5.6 | FG38: 5.4 | FH38: 5.4 | FI38: 6.4 | FJ38: 5.5 | FK38: 5.9 | FL38: 6.4 | FM38: 7 | FN38: 7.2 | FO38: 5.7 | FP38: 8.1 | FQ38: 8.8 | FR38: 8.6 | FS38: 8.3 | FT38: 8 | FU38: 8 | FV38: 7.5 | FW38: 8.3 | FX38: 8.5 | FY38: 7.6 | FZ38: 7.4 | GA38: 6.9 | GB38: 8 | GC38: 5.6 | GD38: 5.3 | GE38: 5.1 | GF38: 4.6 | GG38: 5.2 | GH38: 5 | GI38: 5.1 | GJ38: 4.3 | GK38: 3.4
A39: NOR | B39: Norwegen | C39: 2.7 | D39: 3.1 | E39: 3.6 | F39: 3.4 | G39: 2.6 | H39: 1.8 | I39: 1.8 | J39: 1.7 | K39: 1.4 | L39: 1.7 | M39: 1.5 | N39: 2.7 | O39: 2.3 | P39: 2 | Q39: 1.1 | R39: 0.9 | S39: 1.3 | T39: 1.6 | U39: 1.3 | V39: 1.5 | W39: 1.3 | X39: 1.6 | Y39: 1.3 | Z39: 1.2 | AA39: -0.1 | AB39: 1.2 | AC39: 0.3 | AD39: 1 | AE39: 0.5 | AF39: -0.1 | AG39: 0.2 | AH39: 0 | AI39: -0.2 | AJ39: 0 | AK39: 0.1 | AL39: 0.8 | AM39: 0.9 | AN39: 1.1 | AO39: 0.4 | AP39: 1.2 | AQ39: 0.6 | AR39: 1.1 | AS39: 1.8 | AT39: 1.8 | AU39: 1.9 | AV39: 2.8 | AW39: 3.3 | AX39: 2.6 | AY39: 2.3 | AZ39: 2.3 | BA39: 1.8 | BB39: 2 | BC39: 2.1 | BD39: 1.9 | BE39: 1.8 | BF39: 1.5 | BG39: 1.6 | BH39: 1.8 | BI39: 2.2 | BJ39: 1.9 | BK39: 2.1 | BL39: 1.9 | BM39: 2 | BN39: 2 | BO39: 1.9 | BP39: 1.9 | BQ39: 1.8 | BR39: 1.7 | BS39: 1.8 | BT39: 2 | BU39: 2.6 | BV39: 1.5 | BW39: 1.8 | BX39: 1.9 | BY39: 2.4 | BZ39: 2.7 | CA39: 2.4 | CB39: 2 | CC39: 3.1 | CD39: 3.3 | CE39: 3.6 | CF39: 3.5 | CG39: 3.7 | CH39: 4.1 | CI39: 5 | CJ39: 4.5 | CK39: 4.1 | CL39: 4.1 | CM39: 3.9 | CN39: 3.8 | CO39: 3.9 | CP39: 2.9 | CQ39: 2.7 | CR39: 2.5 | CS39: 2.3 | CT39: 2.2 | CU39: 1.9 | CV39: 1.4 | CW39: 1.3 | CX39: 1.6 | CY39: 1 | CZ39: 1 | DA39: 1.5 | DB39: 1.9 | DC39: 1.6 | DD39: 2.3 | DE39: 2.2 | DF39: 2.6 | DG39: 2.3 | DH39: 2.7 | DI39: 3.5 | DJ39: 3.9 | DK39: 3.8 | DL39: 3.6 | DM39: 3.8 | DN39: 3.9 | DO39: 3 | DP39: 3.6 | DQ39: 3.4 | DR39: 3.2 | DS39: 3.1 | DT39: 2.9 | DU39: 2.1 | DV39: 1.8 | DW39: 1.5 | DX39: 1.5 | DY39: 1.7 | DZ39: 1.5 | EA39: 1.2 | EB39: 2.3 | EC39: 1.7 | ED39: 0.7 | EE39: 0.5 | EF39: 0.6 | EG39: 1.1 | EH39: 1.3 | EI39: 1.4 | EJ39: 1.6 | EK39: 1.4 | EL39: 1.7 | EM39: 0.4 | EN39: 1.4 | EO39: 1.2 | EP39: 2.7 | EQ39: 3.6 | ER39: 3.4 | ES39: 3.2 | ET39: 2.8 | EU39: 3 | EV39: 3.3 | EW39: 3.8 | EX39: 4.8 | EY39: 4 | EZ39: 5.8 | FA39: 6.1 | FB39: 3.9 | FC39: 3.1 | FD39: 3.5 | FE39: 4.7 | FF39: 5.9 | FG39: 6.2 | FH39: 7 | FI39: 7.3 | FJ39: 7.1 | FK39: 7.7 | FL39: 8.4 | FM39: 7.3 | FN39: 6.3 | FO39: 6.2 | FP39: 8 | FQ39: 7.2 | FR39: 7.3 | FS39: 6.9 | FT39: 7.2 | FU39: 6.8 | FV39: 5.6 | FW39: 4.9 | FX39: 2.8 | FY39: 3.7 | FZ39: 4.5 | GA39: 4.7 | GB39: 5.8 | GC39: 4.6 | GD39: 4.4 | GE39: 3.6 | GF39: 3.4 | GG39: 2.7 | GH39: 2.3 | GI39: 2.4 | GJ39: 2.3 | GK39: 2.7
A40: CHE | B40: Schweiz | C40: 0.9 | D40: 0.9 | E40: 1.4 | F40: 1.3 | G40: 1 | H40: 0.5 | I40: 0.4 | J40: 0.2 | K40: 0.3 | L40: 0.2 | M40: 0.2 | N40: 0.4 | O40: 0.6 | P40: 0 | Q40: 0.4 | R40: 1 | S40: 0.2 | T40: 0.3 | U40: 0.5 | V40: 0.2 | W40: -0.4 | X40: 0.3 | Y40: -0.4 | Z40: -0.8 | AA40: -0.4 | AB40: 0.1 | AC40: -0.9 | AD40: -1.2 | AE40: -1 | AF40: -1.1 | AG40: -1.1 | AH40: -1.2 | AI40: -0.8 | AJ40: -0.5 | AK40: -0.3 | AL40: -0.1 | AM40: -0.1 | AN40: -0.3 | AO40: -0.7 | AP40: -0.1 | AQ40: 0.1 | AR40: -0.3 | AS40: -0.4 | AT40: -0.2 | AU40: 0.2 | AV40: 0.5 | AW40: 0.4 | AX40: 0.2 | AY40: 0 | AZ40: 0.2 | BA40: 0.3 | BB40: 0.1 | BC40: 0.2 | BD40: -0.2 | BE40: -0.1 | BF40: 0.1 | BG40: 0.2 | BH40: -0.1 | BI40: -0.1 | BJ40: 0.1 | BK40: 0 | BL40: 0.1 | BM40: 0.1 | BN40: -0.1 | BO40: 0 | BP40: -0.1 | BQ40: -0.4 | BR40: -0.5 | BS40: -0.8 | BT40: -0.9 | BU40: -0.6 | BV40: -0.8 | BW40: -1.2 | BX40: -1.2 | BY40: -1.2 | BZ40: -1.2 | CA40: -1.3 | CB40: -0.8 | CC40: -1.5 | CD40: -0.9 | CE40: -1 | CF40: -0.5 | CG40: -0.5 | CH40: -0.6 | CI40: -0.5 | CJ40: 0 | CK40: -0.3 | CL40: -0.3 | CM40: -0.2 | CN40: -0.2 | CO40: -0.5 | CP40: 0.3 | CQ40: 0.7 | CR40: 0.5 | CS40: 0.7 | CT40: 0.4 | CU40: 0.4 | CV40: 0.6 | CW40: 0.5 | CX40: 0.8 | CY40: 0.8 | CZ40: 0.8 | DA40: 1.1 | DB40: 0.6 | DC40: 0.8 | DD40: 0.5 | DE40: 0.7 | DF40: 0.4 | DG40: 1 | DH40: 0.9 | DI40: 1.2 | DJ40: 1.3 | DK40: 1.1 | DL40: 1.1 | DM40: 1 | DN40: 0.8 | DO40: 0.9 | DP40: 0.7 | DQ40: 0.7 | DR40: 0.7 | DS40: 1.1 | DT40: 0.5 | DU40: 0.7 | DV40: 0.4 | DW40: 0.5 | DX40: 0.1 | DY40: -0.3 | DZ40: -0.3 | EA40: -0.1 | EB40: 0.4 | EC40: 0.2 | ED40: -0.2 | EE40: -0.4 | EF40: -1 | EG40: -1 | EH40: -1.3 | EI40: -1.2 | EJ40: -1.4 | EK40: -1.1 | EL40: -0.9 | EM40: -0.8 | EN40: -1 | EO40: -0.8 | EP40: -0.6 | EQ40: -0.4 | ER40: -0.2 | ES40: -0.1 | ET40: 0.3 | EU40: 0.5 | EV40: 0.5 | EW40: 0.8 | EX40: 0.8 | EY40: 1.3 | EZ40: 1.5 | FA40: 1.3 | FB40: 0.5 | FC40: 1.4 | FD40: 1.9 | FE40: 2.2 | FF40: 2.3 | FG40: 2.7 | FH40: 3.2 | FI40: 3.3 | FJ40: 3.3 | FK40: 3.2 | FL40: 2.9 | FM40: 2.9 | FN40: 2.7 | FO40: 2.7 | FP40: 3.2 | FQ40: 3.2 | FR40: 2.7 | FS40: 2.6 | FT40: 2.2 | FU40: 1.8 | FV40: 2.1 | FW40: 1.9 | FX40: 2 | FY40: 2 | FZ40: 1.6 | GA40: 2.1 | GB40: 2.3 | GC40: 1.5 | GD40: 1.2 | GE40: 1.1 | GF40: 1.4 | GG40: 1.5 | GH40: 1.3 | GI40: 1.2 | GJ40: 1 | GK40: 0.9
A41: TRK | B41: Türkei | C41: 8.2 | D41: 10.1 | E41: 9.6 | F41: 10.2 | G41: 9.1 | H41: 8.4 | I41: 7.6 | J41: 8.3 | K41: 9.2 | L41: 8.6 | M41: 7.3 | N41: 6.4 | O41: 8.6 | P41: 4.9 | Q41: 4.1 | R41: 4 | S41: 4.3 | T41: 7.2 | U41: 6.2 | V41: 6.3 | W41: 6.7 | X41: 6.1 | Y41: 7.6 | Z41: 9.5 | AA41: 10.4 | AB41: 6.5 | AC41: 10.6 | AD41: 10.5 | AE41: 10.5 | AF41: 11.3 | AG41: 8.4 | AH41: 9 | AI41: 9.2 | AJ41: 8.9 | AK41: 9.2 | AL41: 7.9 | AM41: 6.3 | AN41: 6.1 | AO41: 9 | AP41: 7.4 | AQ41: 7.2 | AR41: 7.5 | AS41: 6 | AT41: 6.3 | AU41: 8 | AV41: 8.6 | AW41: 8 | AX41: 7.9 | AY41: 7.7 | AZ41: 7.3 | BA41: 7.4 | BB41: 7.5 | BC41: 7.8 | BD41: 7.9 | BE41: 8.5 | BF41: 9.4 | BG41: 9.4 | BH41: 9.2 | BI41: 9.5 | BJ41: 9.8 | BK41: 9 | BL41: 9 | BM41: 9.2 | BN41: 8.2 | BO41: 8.9 | BP41: 7.2 | BQ41: 7.6 | BR41: 7.6 | BS41: 7.9 | BT41: 8.3 | BU41: 7.6 | BV41: 7.1 | BW41: 7.1 | BX41: 7.9 | BY41: 7.7 | BZ41: 8.1 | CA41: 8.8 | CB41: 7.7 | CC41: 9.6 | CD41: 8.7 | CE41: 7.3 | CF41: 6.6 | CG41: 6.6 | CH41: 7 | CI41: 8.3 | CJ41: 7.9 | CK41: 7.3 | CL41: 7.2 | CM41: 7 | CN41: 8.5 | CO41: 7.7 | CP41: 9 | CQ41: 9.9 | CR41: 11.1 | CS41: 11.8 | CT41: 11.8 | CU41: 11.2 | CV41: 10 | CW41: 10.7 | CX41: 11.1 | CY41: 11.7 | CZ41: 13 | DA41: 11.9 | DB41: 11.1 | DC41: 10.4 | DD41: 10.3 | DE41: 10.2 | DF41: 10.9 | DG41: 12.1 | DH41: 15.4 | DI41: 15.9 | DJ41: 17.9 | DK41: 24.5 | DL41: 25.2 | DM41: 21.6 | DN41: 20.3 | DO41: 16.3 | DP41: 20.4 | DQ41: 19.7 | DR41: 19.7 | DS41: 19.5 | DT41: 18.7 | DU41: 15.7 | DV41: 16.7 | DW41: 15 | DX41: 9.3 | DY41: 8.6 | DZ41: 10.6 | EA41: 11.8 | EB41: 15.2 | EC41: 12.2 | ED41: 12.4 | EE41: 11.9 | EF41: 10.9 | EG41: 11.4 | EH41: 12.6 | EI41: 11.8 | EJ41: 11.8 | EK41: 11.7 | EL41: 11.9 | EM41: 14 | EN41: 14.6 | EO41: 12.3 | EP41: 15 | EQ41: 15.6 | ER41: 16.2 | ES41: 17.1 | ET41: 16.6 | EU41: 17.5 | EV41: 18.9 | EW41: 19.2 | EX41: 19.6 | EY41: 19.9 | EZ41: 21.3 | FA41: 36.1 | FB41: 19.6 | FC41: 48.7 | FD41: 54.4 | FE41: 61.1 | FF41: 70 | FG41: 73.5 | FH41: 78.6 | FI41: 79.5 | FJ41: 80.1 | FK41: 83.4 | FL41: 85.4 | FM41: 84.4 | FN41: 64.3 | FO41: 72.3 | FP41: 57.7 | FQ41: 55.2 | FR41: 50.6 | FS41: 43.7 | FT41: 39.7 | FU41: 38.3 | FV41: 48 | FW41: 59.1 | FX41: 61.7 | FY41: 61.5 | FZ41: 62.1 | GA41: 64.9 | GB41: 54 | GC41: 64.9 | GD41: 67.1 | GE41: 68.6 | GF41: 69.8 | GG41: 75.5 | GH41: 71.6 | GI41: 61.8 | GJ41: 52 | GK41: 49.5
B43: Sonderzeichen:
B44: : | C44: nicht verfügbar

Sheet Zeitraum (hidden)
A1: Zeitraum
A2: 2010-01-01 | B2: 3 | C2: 193 | D2: =LOOKUP(C2,B:B,A:A) -> 2024-09-01 | E2: =TEXT(LEFT(Zeitraum,5),"TT.MM.") -> 01.09. | F2: =Zeitraum -> 2024-09-01 | G2: =IF(E2="31.12.","Jahresdurchschnitt " & TEXT(Zeitraum,"JJJJ"),TEXT(Zeitraum,"MMMM JJJJ")) -> September 2024
A3: 2010-02-01 | B3: 4
A4: 2010-03-01 | B4: 5
A5: 2010-04-01 | B5: 6
A6: 2010-05-01 | B6: 7
A7: 2010-06-01 | B7: 8
A8: 2010-07-01 | B8: 9
A9: 2010-08-01 | B9: 10
A10: 2010-09-01 | B10: 11
A11: 2010-10-01 | B11: 12
A12: 2010-11-01 | B12: 13
A13: 2010-12-01 | B13: 14
A14: 2010-12-31 | B14: 15
A15: 2011-01-01 | B15: 16
A16: 2011-02-01 | B16: 17
A17: 2011-03-01 | B17: 18
A18: 2011-04-01 | B18: 19
A19: 2011-05-01 | B19: 20
A20: 2011-06-01 | B20: 21
A21: 2011-07-01 | B21: 22
A22: 2011-08-01 | B22: 23
A23: 2011-09-01 | B23: 24
A24: 2011-10-01 | B24: 25
A25: 2011-11-01 | B25: 26
A26: 2011-12-01 | B26: 27
A27: 2011-12-31 | B27: 28
A28: 2012-01-01 | B28: 29
A29: 2012-02-01 | B29: 30
A30: 2012-03-01 | B30: 31
A31: 2012-04-01 | B31: 32
A32: 2012-05-01 | B32: 33
A33: 2012-06-01 | B33: 34
A34: 2012-07-01 | B34: 35
A35: 2012-08-01 | B35: 36
A36: 2012-09-01 | B36: 37
A37: 2012-10-01 | B37: 38
A38: 2012-11-01 | B38: 39
A39: 2012-12-01 | B39: 40
A40: 2012-12-31 | B40: 41
A41: 2013-01-01 | B41: 42
A42: 2013-02-01 | B42: 43
A43: 2013-03-01 | B43: 44
A44: 2013-04-01 | B44: 45
A45: 2013-05-01 | B45: 46
A46: 2013-06-01 | B46: 47
A47: 2013-07-01 | B47: 48
A48: 2013-08-01 | B48: 49
A49: 2013-09-01 | B49: 50
A50: 2013-10-01 | B50: 51
A51: 2013-11-01 | B51: 52
A52: 2013-12-01 | B52: 53
A53: 2013-12-31 | B53: 54
A54: 2014-01-01 | B54: 55
A55: 2014-02-01 | B55: 56
A56: 2014-03-01 | B56: 57
A57: 2014-04-01 | B57: 58
A58: 2014-05-01 | B58: 59
A59: 2014-06-01 | B59: 60
A60: 2014-07-01 | B60: 61
A61: 2014-08-01 | B61: 62
A62: 2014-09-01 | B62: 63
A63: 2014-10-01 | B63: 64
A64: 2014-11-01 | B64: 65
A65: 2014-12-01 | B65: 66
A66: 2014-12-31 | B66: 67
A67: 2015-01-01 | B67: 68
A68: 2015-02-01 | B68: 69
A69: 2015-03-01 | B69: 70
A70: 2015-04-01 | B70: 71
A71: 2015-05-01 | B71: 72
A72: 2015-06-01 | B72: 73
A73: 2015-07-01 | B73: 74
A74: 2015-08-01 | B74: 75
A75: 2015-09-01 | B75: 76
A76: 2015-10-01 | B76: 77
A77: 2015-11-01 | B77: 78
A78: 2015-12-01 | B78: 79
A79: 2015-12-31 | B79: 80
A80: 2016-01-01 | B80: 81
A81: 2016-02-01 | B81: 82
A82: 2016-03-01 | B82: 83
A83: 2016-04-01 | B83: 84
A84: 2016-05-01 | B84: 85
A85: 2016-06-01 | B85: 86
A86: 2016-07-01 | B86: 87
A87: 2016-08-01 | B87: 88
A88: 2016-09-01 | B88: 89
A89: 2016-10-01 | B89: 90
A90: 2016-11-01 | B90: 91
A91: 2016-12-01 | B91: 92
A92: 2016-12-31 | B92: 93
A93: 2017-01-01 | B93: 94
A94: 2017-02-01 | B94: 95
A95: 2017-03-01 | B95: 96
A96: 2017-04-01 | B96: 97
A97: 2017-05-01 | B97: 98
A98: 2017-06-01 | B98: 99
A99: 2017-07-01 | B99: 100
A100: 2017-08-01 | B100: 101
A101: 2017-09-01 | B101: 102
A102: 2017-10-01 | B102: 103
A103: 2017-11-01 | B103: 104
A104: 2017-12-01 | B104: 105
A105: 2017-12-31 | B105: 106
A106: 2018-01-01 | B106: 107
A107: 2018-02-01 | B107: 108
A108: 2018-03-01 | B108: 109
A109: 2018-04-01 | B109: 110
A110: 2018-05-01 | B110: 111
A111: 2018-06-01 | B111: 112
A112: 2018-07-01 | B112: 113
A113: 2018-08-01 | B113: 114
A114: 2018-09-01 | B114: 115
A115: 2018-10-01 | B115: 116
A116: 2018-11-01 | B116: 117
A117: 2018-12-01 | B117: 118
A118: 2018-12-31 | B118: 119
A119: 2019-01-01 | B119: 120
A120: 2019-02-01 | B120: 121
A121: 2019-03-01 | B121: 122
A122: 2019-04-01 | B122: 123
A123: 2019-05-01 | B123: 124
A124: 2019-06-01 | B124: 125
A125: 2019-07-01 | B125: 126
A126: 2019-08-01 | B126: 127
A127: 2019-09-01 | B127: 128
A128: 2019-10-01 | B128: 129
A129: 2019-11-01 | B129: 130
A130: 2019-12-01 | B130: 131
A131: 2019-12-31 | B131: 132
A132: 2020-01-01 | B132: 133
A133: 2020-02-01 | B133: 134
A134: 2020-03-01 | B134: 135
A135: 2020-04-01 | B135: 136
A136: 2020-05-01 | B136: 137
A137: 2020-06-01 | B137: 138
A138: 2020-07-01 | B138: 139
A139: 2020-08-01 | B139: 140
A140: 2020-09-01 | B140: 141
A141: 2020-10-01 | B141: 142
A142: 2020-11-01 | B142: 143
A143: 2020-12-01 | B143: 144
A144: 2020-12-31 | B144: 145
A145: 2021-01-01 | B145: 146
A146: 2021-02-01 | B146: 147
A147: 2021-03-01 | B147: 148
A148: 2021-04-01 | B148: 149
A149: 2021-05-01 | B149: 150
A150: 2021-06-01 | B150: 151
A151: 2021-07-01 | B151: 152
A152: 2021-08-01 | B152: 153
A153: 2021-09-01 | B153: 154
A154: 2021-10-01 | B154: 155
A155: 2021-11-01 | B155: 156
A156: 2021-12-01 | B156: 157
A157: 2021-12-31 | B157: 158
A158: 2022-01-01 | B158: 159
A159: 2022-02-01 | B159: 160
A160: 2022-03-01 | B160: 161
A161: 2022-04-01 | B161: 162
A162: 2022-05-01 | B162: 163
A163: 2022-06-01 | B163: 164
A164: 2022-07-01 | B164: 165
A165: 2022-08-01 | B165: 166
A166: 2022-09-01 | B166: 167
A167: 2022-10-01 | B167: 168
A168: 2022-11-01 | B168: 169
A169: 2022-12-01 | B169: 170
A170: 2022-12-31 | B170: 171
A171: 2023-01-01 | B171: 172
A172: 2023-02-01 | B172: 173
A173: 2023-03-01 | B173: 174
A174: 2023-04-01 | B174: 175
A175: 2023-05-01 | B175: 176
A176: 2023-06-01 | B176: 177
A177: 2023-07-01 | B177: 178
A178: 2023-08-01 | B178: 179
A179: 2023-09-01 | B179: 180
A180: 2023-10-01 | B180: 181
A181: 2023-11-01 | B181: 182
A182: 2023-12-01 | B182: 183
A183: 2023-12-31 | B183: 184
A184: 2024-01-01 | B184: 185
A185: 2024-02-01 | B185: 186
A186: 2024-03-01 | B186: 187
A187: 2024-04-01 | B187: 188
A188: 2024-05-01 | B188: 189
A189: 2024-06-01 | B189: 190
A190: 2024-07-01 | B190: 191
A191: 2024-08-01 | B191: 192
A192: 2024-09-01 | B192: 193
